Department family,Entity,Date,Expense Type,Expense area,Supplier,Transaction number,AP Amount (�)
Department of Health,NHS Sheffield CCG,31/10/2019,C&M-PMS Contract Value,PRC DELEGATED CO-COMMISSIONING,ABBEY LANE SURGERY,29299226,"23,782.31 "
Department of Health,NHS Sheffield CCG,31/10/2019,C&M-PMS Out of Hours Opt Outs,PRC DELEGATED CO-COMMISSIONING,ABBEY LANE SURGERY,29299226,23.10 
Department of Health,NHS Sheffield CCG,31/10/2019,C&M-PMS PCN DES Participation,PRC DELEGATED CO-COMMISSIONING,ABBEY LANE SURGERY,29299226,452.23 
Department of Health,NHS Sheffield CCG,31/10/2019,C&M-PMS Prem Notional Rent,PRC DELEGATED CO-COMMISSIONING,ABBEY LANE SURGERY,29299226,"2,122.92 "
Department of Health,NHS Sheffield CCG,31/10/2019,C&M-PMS QOF Aspiration,PRC DELEGATED CO-COMMISSIONING,ABBEY LANE SURGERY,29299226,"2,636.98 "
Department of Health,NHS Sheffield CCG,31/10/2019,Cont Care-Physical Disab (65+),CHC ADULT FULLY FUNDED,ABBEYCARE NURSING,29286660,"53,446.17 "
Department of Health,NHS Sheffield CCG,31/10/2019,Clinical&Medical-Voluntary Sector,COMMUNITY SERVICES,AGE UK SHEFFIELD,29407555,"60,000.00 "
Department of Health,NHS Sheffield CCG,31/10/2019,C&M-PMS Contract Value,PRC DELEGATED CO-COMMISSIONING,AVENUE MEDICAL CENTRE SHEFFIELD,29299224,"55,174.87 "
Department of Health,NHS Sheffield CCG,31/10/2019,C&M-PMS Out of Hours Opt Outs,PRC DELEGATED CO-COMMISSIONING,AVENUE MEDICAL CENTRE SHEFFIELD,29299224,10.28 
Department of Health,NHS Sheffield CCG,31/10/2019,C&M-PMS PCN DES Participation,PRC DELEGATED CO-COMMISSIONING,AVENUE MEDICAL CENTRE SHEFFIELD,29299224,"1,058.32 "
Department of Health,NHS Sheffield CCG,31/10/2019,C&M-PMS PCO Other,PRC DELEGATED CO-COMMISSIONING,AVENUE MEDICAL CENTRE SHEFFIELD,29299224,460.30 
Department of Health,NHS Sheffield CCG,31/10/2019,C&M-PMS Prem Notional Rent,PRC DELEGATED CO-COMMISSIONING,AVENUE MEDICAL CENTRE SHEFFIELD,29299224,"5,546.67 "
Department of Health,NHS Sheffield CCG,31/10/2019,C&M-PMS Prem Rates,PRC DELEGATED CO-COMMISSIONING,AVENUE MEDICAL CENTRE SHEFFIELD,29299224,"1,264.00 "
Department of Health,NHS Sheffield CCG,31/10/2019,C&M-PMS QOF Aspiration,PRC DELEGATED CO-COMMISSIONING,AVENUE MEDICAL CENTRE SHEFFIELD,29299224,"5,847.72 "
Department of Health,NHS Sheffield CCG,31/10/2019,Hcare Srv Rec Fdtn Trust-Contract Baseline,ACUTE COMMISSIONING,BARNSLEY HOSPITAL NHS FOUNDATION TRUST,29407546,"86,710.00 "
Department of Health,NHS Sheffield CCG,31/10/2019,C&M-PMS Contract Value,PRC DELEGATED CO-COMMISSIONING,BARNSLEY ROAD SURGERY,29299228,"21,707.99 "
Department of Health,NHS Sheffield CCG,31/10/2019,C&M-PMS PCN DES Participation,PRC DELEGATED CO-COMMISSIONING,BARNSLEY ROAD SURGERY,29299228,410.63 
Department of Health,NHS Sheffield CCG,31/10/2019,C&M-PMS Prem Notional Rent,PRC DELEGATED CO-COMMISSIONING,BARNSLEY ROAD SURGERY,29299228,"2,652.17 "
Department of Health,NHS Sheffield CCG,31/10/2019,C&M-PMS Prem Water Rates,PRC DELEGATED CO-COMMISSIONING,BARNSLEY ROAD SURGERY,29299228,103.70 
Department of Health,NHS Sheffield CCG,31/10/2019,C&M-PMS QOF Aspiration,PRC DELEGATED CO-COMMISSIONING,BARNSLEY ROAD SURGERY,29299228,"2,377.21 "
Department of Health,NHS Sheffield CCG,31/10/2019,C&M-GMS DES Minor Surgery,PRC DELEGATED CO-COMMISSIONING,BASLOW ROAD & SHOREHAM STREET SURGERIES,29542074,"8,875.00 "
Department of Health,NHS Sheffield CCG,31/10/2019,C&M-GMS Global Sum,PRC DELEGATED CO-COMMISSIONING,BASLOW ROAD & SHOREHAM STREET SURGERIES,29542074,"98,044.33 "
Department of Health,NHS Sheffield CCG,31/10/2019,C&M-GMS MPIG Correction Factor,PRC DELEGATED CO-COMMISSIONING,BASLOW ROAD & SHOREHAM STREET SURGERIES,29542074,146.21 
Department of Health,NHS Sheffield CCG,31/10/2019,C&M-GMS PCN DES Participation,PRC DELEGATED CO-COMMISSIONING,BASLOW ROAD & SHOREHAM STREET SURGERIES,29542074,"2,012.54 "
Department of Health,NHS Sheffield CCG,31/10/2019,C&M-GMS Prem Notional Rent,PRC DELEGATED CO-COMMISSIONING,BASLOW ROAD & SHOREHAM STREET SURGERIES,29542074,"8,222.71 "
Department of Health,NHS Sheffield CCG,31/10/2019,C&M-GMS Prem Rates,PRC DELEGATED CO-COMMISSIONING,BASLOW ROAD & SHOREHAM STREET SURGERIES,29542074,"2,421.00 "
Department of Health,NHS Sheffield CCG,31/10/2019,C&M-GMS QOF Aspiration,PRC DELEGATED CO-COMMISSIONING,BASLOW ROAD & SHOREHAM STREET SURGERIES,29542074,"10,278.96 "
Department of Health,NHS Sheffield CCG,31/10/2019,C&M-PMS LES Presc Incentive Sch,LOCAL ENHANCED SERVICES,BASLOW ROAD & SHOREHAM STREET SURGERIES,29572464,"38,582.00 "
Department of Health,NHS Sheffield CCG,31/10/2019,Cont Care-Physical Disab (65+),CHC ADULT FULLY FUNDED,BC SHEFFIELD LTD,29310239,"39,504.08 "
Department of Health,NHS Sheffield CCG,31/10/2019,C&M-PMS Contract Value,PRC DELEGATED CO-COMMISSIONING,BIRLEY HEALTH CENTRE,29299230,"63,913.00 "
Department of Health,NHS Sheffield CCG,31/10/2019,C&M-PMS PCN DES Participation,PRC DELEGATED CO-COMMISSIONING,BIRLEY HEALTH CENTRE,29299230,"1,209.32 "
Department of Health,NHS Sheffield CCG,31/10/2019,C&M-PMS PCO Other,PRC DELEGATED CO-COMMISSIONING,BIRLEY HEALTH CENTRE,29299230,535.90 
Department of Health,NHS Sheffield CCG,31/10/2019,C&M-PMS Prem Notional Rent,PRC DELEGATED CO-COMMISSIONING,BIRLEY HEALTH CENTRE,29299230,"7,600.58 "
Department of Health,NHS Sheffield CCG,31/10/2019,C&M-PMS Prem Rates,PRC DELEGATED CO-COMMISSIONING,BIRLEY HEALTH CENTRE,29299230,"1,407.00 "
Department of Health,NHS Sheffield CCG,31/10/2019,C&M-PMS QOF Aspiration,PRC DELEGATED CO-COMMISSIONING,BIRLEY HEALTH CENTRE,29299230,"7,981.39 "
Department of Health,NHS Sheffield CCG,31/10/2019,Clinical&Medical-Independent Sector,ACUTE COMMISSIONING,BMI HEALTHCARE LTD,29286636,"59,155.50 "
Department of Health,NHS Sheffield CCG,31/10/2019,Cont Care-Funded Nursing Care Allow,FUNDED NURSING CARE,BONDCARE,29327775,"29,398.52 "
Department of Health,NHS Sheffield CCG,31/10/2019,Cont Care-Physical Disab (<65),CHC ADULT FULLY FUNDED,BONDCARE,29345808,"31,894.37 "
Department of Health,NHS Sheffield CCG,31/10/2019,C&M-GMS Cost of Drugs -Prescribing,LOCAL ENHANCED SERVICES,BROOMHILL SURGERY,29542081,"2,361.12 "
Department of Health,NHS Sheffield CCG,31/10/2019,C&M-GMS DES Minor Surgery,PRC DELEGATED CO-COMMISSIONING,BROOMHILL SURGERY,29542081,320.00 
Department of Health,NHS Sheffield CCG,31/10/2019,C&M-GMS Global Sum,PRC DELEGATED CO-COMMISSIONING,BROOMHILL SURGERY,29542081,"65,079.91 "
Department of Health,NHS Sheffield CCG,31/10/2019,C&M-GMS MPIG Correction Factor,PRC DELEGATED CO-COMMISSIONING,BROOMHILL SURGERY,29542081,251.00 
Department of Health,NHS Sheffield CCG,31/10/2019,C&M-GMS PCN DES Participation,PRC DELEGATED CO-COMMISSIONING,BROOMHILL SURGERY,29542081,"1,318.50 "
Department of Health,NHS Sheffield CCG,31/10/2019,C&M-GMS Prem Cost Rent,PRC DELEGATED CO-COMMISSIONING,BROOMHILL SURGERY,29542081,"2,413.75 "
Department of Health,NHS Sheffield CCG,31/10/2019,C&M-GMS Prem Notional Rent,PRC DELEGATED CO-COMMISSIONING,BROOMHILL SURGERY,29542081,"2,612.50 "
Department of Health,NHS Sheffield CCG,31/10/2019,C&M-GMS Prem Rates,PRC DELEGATED CO-COMMISSIONING,BROOMHILL SURGERY,29542081,"1,891.00 "
Department of Health,NHS Sheffield CCG,31/10/2019,C&M-GMS Prem Water Rates,PRC DELEGATED CO-COMMISSIONING,BROOMHILL SURGERY,29542081,"4,286.83 "
Department of Health,NHS Sheffield CCG,31/10/2019,C&M-GMS Prof Fees Prescribing,PRC DELEGATED CO-COMMISSIONING,BROOMHILL SURGERY,29542081,103.43 
Department of Health,NHS Sheffield CCG,31/10/2019,C&M-GMS QOF Aspiration,PRC DELEGATED CO-COMMISSIONING,BROOMHILL SURGERY,29542081,"6,211.39 "
Department of Health,NHS Sheffield CCG,31/10/2019,C&M-GMS IT Comm Servs -GP Practices,PRIMARY CARE IT,BT GLOBAL SERVICES,29407601,"25,083.50 "
Department of Health,NHS Sheffield CCG,31/10/2019,Computer Software/License,CORPORATE COSTS & SERVICES,BT GLOBAL SERVICES,29407601,"2,961.84 "
Department of Health,NHS Sheffield CCG,31/10/2019,C&M-GMS Cost of Drugs -Prescribing,LOCAL ENHANCED SERVICES,BUCHANAN ROAD SURGERY,29542077,72.01 
Department of Health,NHS Sheffield CCG,31/10/2019,C&M-GMS DES Minor Surgery,PRC DELEGATED CO-COMMISSIONING,BUCHANAN ROAD SURGERY,29542077,160.00 
Department of Health,NHS Sheffield CCG,31/10/2019,C&M-GMS Global Sum,PRC DELEGATED CO-COMMISSIONING,BUCHANAN ROAD SURGERY,29542077,"36,144.41 "
Department of Health,NHS Sheffield CCG,31/10/2019,C&M-GMS MPIG Correction Factor,PRC DELEGATED CO-COMMISSIONING,BUCHANAN ROAD SURGERY,29542077,655.25 
Department of Health,NHS Sheffield CCG,31/10/2019,C&M-GMS PCN DES Participation,PRC DELEGATED CO-COMMISSIONING,BUCHANAN ROAD SURGERY,29542077,736.41 
Department of Health,NHS Sheffield CCG,31/10/2019,C&M-GMS Prem Notional Rent,PRC DELEGATED CO-COMMISSIONING,BUCHANAN ROAD SURGERY,29542077,"2,595.83 "
Department of Health,NHS Sheffield CCG,31/10/2019,C&M-GMS Prem Rates,PRC DELEGATED CO-COMMISSIONING,BUCHANAN ROAD SURGERY,29542077,884.00 
Department of Health,NHS Sheffield CCG,31/10/2019,C&M-GMS Prof Fees Prescribing,PRC DELEGATED CO-COMMISSIONING,BUCHANAN ROAD SURGERY,29542077,26.46 
Department of Health,NHS Sheffield CCG,31/10/2019,C&M-GMS QOF Aspiration,PRC DELEGATED CO-COMMISSIONING,BUCHANAN ROAD SURGERY,29542077,"4,303.24 "
Department of Health,NHS Sheffield CCG,31/10/2019,C&M-PMS Contract Value,PRC DELEGATED CO-COMMISSIONING,BURNCROSS SURGERY,29299232,"121,145.86 "
Department of Health,NHS Sheffield CCG,31/10/2019,C&M-PMS PCN DES Participation,PRC DELEGATED CO-COMMISSIONING,BURNCROSS SURGERY,29299232,"2,292.15 "
Department of Health,NHS Sheffield CCG,31/10/2019,C&M-PMS Prem Notional Rent,PRC DELEGATED CO-COMMISSIONING,BURNCROSS SURGERY,29299232,"14,058.33 "
Department of Health,NHS Sheffield CCG,31/10/2019,C&M-PMS QOF Aspiration,PRC DELEGATED CO-COMMISSIONING,BURNCROSS SURGERY,29299232,"15,732.40 "
Department of Health,NHS Sheffield CCG,31/10/2019,C&M-PMS Contract Value,PRC DELEGATED CO-COMMISSIONING,BURNGREAVE SURGERY,29299234,"57,355.43 "
Department of Health,NHS Sheffield CCG,31/10/2019,C&M-PMS Out of Hours Opt Outs,PRC DELEGATED CO-COMMISSIONING,BURNGREAVE SURGERY,29299234,6.70 
Department of Health,NHS Sheffield CCG,31/10/2019,C&M-PMS PCN DES Participation,PRC DELEGATED CO-COMMISSIONING,BURNGREAVE SURGERY,29299234,"1,088.98 "
Department of Health,NHS Sheffield CCG,31/10/2019,C&M-PMS Prem Notional Rent,PRC DELEGATED CO-COMMISSIONING,BURNGREAVE SURGERY,29299234,"6,622.92 "
Department of Health,NHS Sheffield CCG,31/10/2019,C&M-PMS Prem Rates,PRC DELEGATED CO-COMMISSIONING,BURNGREAVE SURGERY,29299234,"2,140.00 "
Department of Health,NHS Sheffield CCG,31/10/2019,C&M-PMS QOF Aspiration,PRC DELEGATED CO-COMMISSIONING,BURNGREAVE SURGERY,29299234,"5,288.96 "
Department of Health,NHS Sheffield CCG,31/10/2019,C&M-GMS Cost of Drugs -Prescribing,LOCAL ENHANCED SERVICES,CARTERKNOWLE & DORE MEDICAL PRACTICE,29542086,"2,435.74 "
Department of Health,NHS Sheffield CCG,31/10/2019,C&M-GMS DES Learn Dsblty Hlth Chk,PRC DELEGATED CO-COMMISSIONING,CARTERKNOWLE & DORE MEDICAL PRACTICE,29542086,"5,740.00 "
Department of Health,NHS Sheffield CCG,31/10/2019,C&M-GMS DES Minor Surgery,PRC DELEGATED CO-COMMISSIONING,CARTERKNOWLE & DORE MEDICAL PRACTICE,29542086,"3,310.00 "
Department of Health,NHS Sheffield CCG,31/10/2019,C&M-GMS Global Sum,PRC DELEGATED CO-COMMISSIONING,CARTERKNOWLE & DORE MEDICAL PRACTICE,29542086,"85,300.87 "
Department of Health,NHS Sheffield CCG,31/10/2019,C&M-GMS MPIG Correction Factor,PRC DELEGATED CO-COMMISSIONING,CARTERKNOWLE & DORE MEDICAL PRACTICE,29542086,747.29 
Department of Health,NHS Sheffield CCG,31/10/2019,C&M-GMS PCN DES Participation,PRC DELEGATED CO-COMMISSIONING,CARTERKNOWLE & DORE MEDICAL PRACTICE,29542086,"1,742.96 "
Department of Health,NHS Sheffield CCG,31/10/2019,C&M-GMS Prem Notional Rent,PRC DELEGATED CO-COMMISSIONING,CARTERKNOWLE & DORE MEDICAL PRACTICE,29542086,"7,596.50 "
Department of Health,NHS Sheffield CCG,31/10/2019,C&M-GMS Prem Rates,PRC DELEGATED CO-COMMISSIONING,CARTERKNOWLE & DORE MEDICAL PRACTICE,29542086,"1,961.00 "
Department of Health,NHS Sheffield CCG,31/10/2019,C&M-GMS Prof Fees Prescribing,PRC DELEGATED CO-COMMISSIONING,CARTERKNOWLE & DORE MEDICAL PRACTICE,29542086,168.37 
Department of Health,NHS Sheffield CCG,31/10/2019,C&M-GMS QOF Aspiration,PRC DELEGATED CO-COMMISSIONING,CARTERKNOWLE & DORE MEDICAL PRACTICE,29542086,"10,055.02 "
Department of Health,NHS Sheffield CCG,31/10/2019,C&M-GMS Cost of Drugs -Prescribing,LOCAL ENHANCED SERVICES,CHARNOCK HEALTH PRIMARY CARE CENTRE,29542083,774.49 
Department of Health,NHS Sheffield CCG,31/10/2019,C&M-GMS DES Minor Surgery,PRC DELEGATED CO-COMMISSIONING,CHARNOCK HEALTH PRIMARY CARE CENTRE,29542083,"1,900.00 "
Department of Health,NHS Sheffield CCG,31/10/2019,C&M-GMS Global Sum,PRC DELEGATED CO-COMMISSIONING,CHARNOCK HEALTH PRIMARY CARE CENTRE,29542083,"43,644.95 "
Department of Health,NHS Sheffield CCG,31/10/2019,C&M-GMS MPIG Correction Factor,PRC DELEGATED CO-COMMISSIONING,CHARNOCK HEALTH PRIMARY CARE CENTRE,29542083,206.62 
Department of Health,NHS Sheffield CCG,31/10/2019,C&M-GMS PCN DES Participation,PRC DELEGATED CO-COMMISSIONING,CHARNOCK HEALTH PRIMARY CARE CENTRE,29542083,869.33 
Department of Health,NHS Sheffield CCG,31/10/2019,C&M-GMS PCO Other,PRC DELEGATED CO-COMMISSIONING,CHARNOCK HEALTH PRIMARY CARE CENTRE,29542083,363.80 
Department of Health,NHS Sheffield CCG,31/10/2019,C&M-GMS Prem Actual Rent,PRC DELEGATED CO-COMMISSIONING,CHARNOCK HEALTH PRIMARY CARE CENTRE,29542083,"20,100.00 "
Department of Health,NHS Sheffield CCG,31/10/2019,C&M-GMS Prem Notional Rent,PRC DELEGATED CO-COMMISSIONING,CHARNOCK HEALTH PRIMARY CARE CENTRE,29542083,335.00 
Department of Health,NHS Sheffield CCG,31/10/2019,C&M-GMS Prem Rates,PRC DELEGATED CO-COMMISSIONING,CHARNOCK HEALTH PRIMARY CARE CENTRE,29542083,"1,547.00 "
Department of Health,NHS Sheffield CCG,31/10/2019,C&M-GMS Prem Water Rates,PRC DELEGATED CO-COMMISSIONING,CHARNOCK HEALTH PRIMARY CARE CENTRE,29542083,78.98 
Department of Health,NHS Sheffield CCG,31/10/2019,C&M-GMS Prof Fees Prescribing,PRC DELEGATED CO-COMMISSIONING,CHARNOCK HEALTH PRIMARY CARE CENTRE,29542083,108.23 
Department of Health,NHS Sheffield CCG,31/10/2019,C&M-GMS QOF Aspiration,PRC DELEGATED CO-COMMISSIONING,CHARNOCK HEALTH PRIMARY CARE CENTRE,29542083,"4,932.79 "
Department of Health,NHS Sheffield CCG,31/10/2019,Hcare Srv Rec Fdtn Trust-Contract Baseline,ACUTE COMMISSIONING,CHESTERFIELD ROYAL HOSPITAL NHS FOUNDATION TRUST,29528513,"318,586.00 "
Department of Health,NHS Sheffield CCG,31/10/2019,Hcare Srv Rec Fdtn Trust-Contract Baseline,ACUTE COMMISSIONING,CHESTERFIELD ROYAL HOSPITAL NHS FOUNDATION TRUST,29529350,"318,586.00 "
Department of Health,NHS Sheffield CCG,31/10/2019,Clinical&Medical-Independent Sector,ACUTE COMMISSIONING,CLAREMONT HOSPITAL,29327782,"66,095.00 "
Department of Health,NHS Sheffield CCG,31/10/2019,C&M-APMS Contract Value,PRC DELEGATED CO-COMMISSIONING,CLOVER CITY PRACTICE,29299304,"27,537.70 "
Department of Health,NHS Sheffield CCG,31/10/2019,C&M-APMS PCN DES Participation,PRC DELEGATED CO-COMMISSIONING,CLOVER CITY PRACTICE,29299304,529.90 
Department of Health,NHS Sheffield CCG,31/10/2019,C&M-PMS QOF Aspiration,PRC DELEGATED CO-COMMISSIONING,CLOVER CITY PRACTICE,29299304,"1,537.57 "
Department of Health,NHS Sheffield CCG,31/10/2019,C&M-APMS Contract Value,PRC DELEGATED CO-COMMISSIONING,CLOVER GROUP PRACTICE,29299238,"127,049.89 "
Department of Health,NHS Sheffield CCG,31/10/2019,C&M-APMS PCN DES Participation,PRC DELEGATED CO-COMMISSIONING,CLOVER GROUP PRACTICE,29299238,"2,421.56 "
Department of Health,NHS Sheffield CCG,31/10/2019,C&M-APMS PCO Locum Adop/Pat/Mat,PRC DELEGATED CO-COMMISSIONING,CLOVER GROUP PRACTICE,29299238,"16,418.55 "
Department of Health,NHS Sheffield CCG,31/10/2019,C&M-APMS Prem Actual Rent,PRC DELEGATED CO-COMMISSIONING,CLOVER GROUP PRACTICE,29299238,"7,973.85 "
Department of Health,NHS Sheffield CCG,31/10/2019,C&M-APMS Prem Healthcentre Rent,PRC DELEGATED CO-COMMISSIONING,CLOVER GROUP PRACTICE,29299238,"59,658.86 "
Department of Health,NHS Sheffield CCG,31/10/2019,C&M-APMS Prem Notional Rent,PRC DELEGATED CO-COMMISSIONING,CLOVER GROUP PRACTICE,29299238,"2,804.17 "
Department of Health,NHS Sheffield CCG,31/10/2019,C&M-PMS QOF Aspiration,PRC DELEGATED CO-COMMISSIONING,CLOVER GROUP PRACTICE,29299238,"11,480.20 "
Department of Health,NHS Sheffield CCG,31/10/2019,C&M-APMS LES Translation Fees,LOCAL ENHANCED SERVICES,CLOVER GROUP PRACTICE,29447014,"57,500.00 "
Department of Health,NHS Sheffield CCG,31/10/2019,Voids and Subsidies,PRC DELEGATED CO-COMMISSIONING,COMMUNITY HEALTH PARTNERSHIPS LTD,29589248,"37,050.51 "
Department of Health,NHS Sheffield CCG,31/10/2019,Voids and Subsidies,RECHARGES NHS PROPERTY SERVICES LTD,COMMUNITY HEALTH PARTNERSHIPS LTD,29589248,"117,396.67 "
Department of Health,NHS Sheffield CCG,31/10/2019,C&M-GMS Cost of Drugs -Prescribing,LOCAL ENHANCED SERVICES,CROOKES PRACTICE,29542091,738.83 
Department of Health,NHS Sheffield CCG,31/10/2019,C&M-GMS Global Sum,PRC DELEGATED CO-COMMISSIONING,CROOKES PRACTICE,29542091,"51,584.27 "
Department of Health,NHS Sheffield CCG,31/10/2019,C&M-GMS MPIG Correction Factor,PRC DELEGATED CO-COMMISSIONING,CROOKES PRACTICE,29542091,772.96 
Department of Health,NHS Sheffield CCG,31/10/2019,C&M-GMS PCN DES Participation,PRC DELEGATED CO-COMMISSIONING,CROOKES PRACTICE,29542091,"1,040.55 "
Department of Health,NHS Sheffield CCG,31/10/2019,C&M-GMS PCO Other,PRC DELEGATED CO-COMMISSIONING,CROOKES PRACTICE,29542091,512.60 
Department of Health,NHS Sheffield CCG,31/10/2019,C&M-GMS Prem Notional Rent,PRC DELEGATED CO-COMMISSIONING,CROOKES PRACTICE,29542091,"3,874.67 "
Department of Health,NHS Sheffield CCG,31/10/2019,C&M-GMS Prem Rates,PRC DELEGATED CO-COMMISSIONING,CROOKES PRACTICE,29542091,"1,510.00 "
Department of Health,NHS Sheffield CCG,31/10/2019,C&M-GMS Prof Fees Prescribing,PRC DELEGATED CO-COMMISSIONING,CROOKES PRACTICE,29542091,101.02 
Department of Health,NHS Sheffield CCG,31/10/2019,C&M-GMS QOF Aspiration,PRC DELEGATED CO-COMMISSIONING,CROOKES PRACTICE,29542091,"4,885.77 "
Department of Health,NHS Sheffield CCG,31/10/2019,Voids and Subsidies,RECHARGES NHS PROPERTY SERVICES LTD,DARNALL WELL BEING,29392368,"31,340.50 "
Department of Health,NHS Sheffield CCG,31/10/2019,C&M-PMS Contract Value,PRC DELEGATED CO-COMMISSIONING,DEEPCAR MEDICAL CENTRE,29299240,"41,997.92 "
Department of Health,NHS Sheffield CCG,31/10/2019,C&M-PMS Out of Hours Opt Outs,PRC DELEGATED CO-COMMISSIONING,DEEPCAR MEDICAL CENTRE,29299240,12.61 
Department of Health,NHS Sheffield CCG,31/10/2019,C&M-PMS PCN DES Participation,PRC DELEGATED CO-COMMISSIONING,DEEPCAR MEDICAL CENTRE,29299240,789.85 
Department of Health,NHS Sheffield CCG,31/10/2019,C&M-PMS Prem Healthcentre Rent,PRC DELEGATED CO-COMMISSIONING,DEEPCAR MEDICAL CENTRE,29299240,"29,915.44 "
Department of Health,NHS Sheffield CCG,31/10/2019,C&M-PMS QOF Aspiration,PRC DELEGATED CO-COMMISSIONING,DEEPCAR MEDICAL CENTRE,29299240,"4,298.67 "
Department of Health,NHS Sheffield CCG,31/10/2019,C&M-GMS Cost of Drugs -Prescribing,LOCAL ENHANCED SERVICES,DEVONSHIRE GREEN MEDICAL CENTRE,29542094,417.29 
Department of Health,NHS Sheffield CCG,31/10/2019,C&M-GMS DES Extended Hours Access,PRC DELEGATED CO-COMMISSIONING,DEVONSHIRE GREEN MEDICAL CENTRE,29542094,"6,816.36 "
Department of Health,NHS Sheffield CCG,31/10/2019,C&M-GMS DES Minor Surgery,PRC DELEGATED CO-COMMISSIONING,DEVONSHIRE GREEN MEDICAL CENTRE,29542094,125.00 
Department of Health,NHS Sheffield CCG,31/10/2019,C&M-GMS Global Sum,PRC DELEGATED CO-COMMISSIONING,DEVONSHIRE GREEN MEDICAL CENTRE,29542094,"46,282.67 "
Department of Health,NHS Sheffield CCG,31/10/2019,C&M-GMS MPIG Correction Factor,PRC DELEGATED CO-COMMISSIONING,DEVONSHIRE GREEN MEDICAL CENTRE,29542094,"1,615.60 "
Department of Health,NHS Sheffield CCG,31/10/2019,C&M-GMS PCN DES Clinical Director,PRC DELEGATED CO-COMMISSIONING,DEVONSHIRE GREEN MEDICAL CENTRE,29542094,"3,188.00 "
Department of Health,NHS Sheffield CCG,31/10/2019,C&M-GMS PCN DES PCN support,LOCAL ENHANCED SERVICES,DEVONSHIRE GREEN MEDICAL CENTRE,29542094,"6,977.63 "
Department of Health,NHS Sheffield CCG,31/10/2019,C&M-GMS PCN DES Participation,PRC DELEGATED CO-COMMISSIONING,DEVONSHIRE GREEN MEDICAL CENTRE,29542094,931.75 
Department of Health,NHS Sheffield CCG,31/10/2019,C&M-GMS Prem Notional Rent,PRC DELEGATED CO-COMMISSIONING,DEVONSHIRE GREEN MEDICAL CENTRE,29542094,"5,987.50 "
Department of Health,NHS Sheffield CCG,31/10/2019,C&M-GMS Prem Rates,PRC DELEGATED CO-COMMISSIONING,DEVONSHIRE GREEN MEDICAL CENTRE,29542094,975.00 
Department of Health,NHS Sheffield CCG,31/10/2019,C&M-GMS Prof Fees Prescribing,PRC DELEGATED CO-COMMISSIONING,DEVONSHIRE GREEN MEDICAL CENTRE,29542094,86.59 
Department of Health,NHS Sheffield CCG,31/10/2019,C&M-GMS QOF Aspiration,PRC DELEGATED CO-COMMISSIONING,DEVONSHIRE GREEN MEDICAL CENTRE,29542094,"4,805.68 "
Department of Health,NHS Sheffield CCG,31/10/2019,Hcare Srv Rec Fdtn Trust-Contract Baseline,ACUTE COMMISSIONING,DONCASTER AND BASSETLAW HOSPITALS NHS FOUNDATION TRUST,29265804,"44,305.00 "
Department of Health,NHS Sheffield CCG,31/10/2019,C&M-PMS Contract Value,PRC DELEGATED CO-COMMISSIONING,DOVERCOURT SURGERY,29299242,"73,204.78 "
Department of Health,NHS Sheffield CCG,31/10/2019,C&M-PMS Out of Hours Opt Outs,PRC DELEGATED CO-COMMISSIONING,DOVERCOURT SURGERY,29299242,8.40 
Department of Health,NHS Sheffield CCG,31/10/2019,C&M-PMS PCN DES Participation,PRC DELEGATED CO-COMMISSIONING,DOVERCOURT SURGERY,29299242,"1,392.36 "
Department of Health,NHS Sheffield CCG,31/10/2019,C&M-PMS PCO Other,PRC DELEGATED CO-COMMISSIONING,DOVERCOURT SURGERY,29299242,536.10 
Department of Health,NHS Sheffield CCG,31/10/2019,C&M-PMS Prem Actual Rent,PRC DELEGATED CO-COMMISSIONING,DOVERCOURT SURGERY,29299242,"12,400.00 "
Department of Health,NHS Sheffield CCG,31/10/2019,C&M-PMS Prem Notional Rent,PRC DELEGATED CO-COMMISSIONING,DOVERCOURT SURGERY,29299242,"1,708.33 "
Department of Health,NHS Sheffield CCG,31/10/2019,C&M-PMS QOF Aspiration,PRC DELEGATED CO-COMMISSIONING,DOVERCOURT SURGERY,29299242,"7,675.00 "
Department of Health,NHS Sheffield CCG,31/10/2019,C&M-PMS LES Presc Incentive Sch,LOCAL ENHANCED SERVICES,DOVERCOURT SURGERY,29572478,"25,920.00 "
Department of Health,NHS Sheffield CCG,31/10/2019,C&M-PMS Contract Value,PRC DELEGATED CO-COMMISSIONING,DR MEHROTRA & PARTNER,29299244,"26,407.40 "
Department of Health,NHS Sheffield CCG,31/10/2019,C&M-PMS PCN DES Participation,PRC DELEGATED CO-COMMISSIONING,DR MEHROTRA & PARTNER,29299244,501.42 
Department of Health,NHS Sheffield CCG,31/10/2019,C&M-PMS PCO Locum Adop/Pat/Mat,PRC DELEGATED CO-COMMISSIONING,DR MEHROTRA & PARTNER,29299244,"3,980.00 "
Department of Health,NHS Sheffield CCG,31/10/2019,C&M-PMS PCO Other,PRC DELEGATED CO-COMMISSIONING,DR MEHROTRA & PARTNER,29299244,237.80 
Department of Health,NHS Sheffield CCG,31/10/2019,C&M-PMS Prem Actual Rent,PRC DELEGATED CO-COMMISSIONING,DR MEHROTRA & PARTNER,29299244,"2,650.00 "
Department of Health,NHS Sheffield CCG,31/10/2019,C&M-PMS Prem Notional Rent,PRC DELEGATED CO-COMMISSIONING,DR MEHROTRA & PARTNER,29299244,"5,157.29 "
Department of Health,NHS Sheffield CCG,31/10/2019,C&M-PMS Prem Rates,PRC DELEGATED CO-COMMISSIONING,DR MEHROTRA & PARTNER,29299244,"1,606.00 "
Department of Health,NHS Sheffield CCG,31/10/2019,C&M-PMS QOF Aspiration,PRC DELEGATED CO-COMMISSIONING,DR MEHROTRA & PARTNER,29299244,"2,763.65 "
Department of Health,NHS Sheffield CCG,31/10/2019,C&M-PMS Contract Value,PRC DELEGATED CO-COMMISSIONING,DR MILNER & PARTNERS,29299246,"75,997.17 "
Department of Health,NHS Sheffield CCG,31/10/2019,C&M-PMS Out of Hours Opt Outs,PRC DELEGATED CO-COMMISSIONING,DR MILNER & PARTNERS,29299246,7.01 
Department of Health,NHS Sheffield CCG,31/10/2019,C&M-PMS PCN DES Participation,PRC DELEGATED CO-COMMISSIONING,DR MILNER & PARTNERS,29299246,"1,435.93 "
Department of Health,NHS Sheffield CCG,31/10/2019,C&M-PMS Prem Actual Rent,PRC DELEGATED CO-COMMISSIONING,DR MILNER & PARTNERS,29299246,"11,382.00 "
Department of Health,NHS Sheffield CCG,31/10/2019,C&M-PMS Prem Notional Rent,PRC DELEGATED CO-COMMISSIONING,DR MILNER & PARTNERS,29299246,"4,462.42 "
Department of Health,NHS Sheffield CCG,31/10/2019,C&M-PMS Prem Rates,PRC DELEGATED CO-COMMISSIONING,DR MILNER & PARTNERS,29299246,"2,593.00 "
Department of Health,NHS Sheffield CCG,31/10/2019,C&M-PMS Prem Water Rates,PRC DELEGATED CO-COMMISSIONING,DR MILNER & PARTNERS,29299246,699.02 
Department of Health,NHS Sheffield CCG,31/10/2019,C&M-PMS QOF Aspiration,PRC DELEGATED CO-COMMISSIONING,DR MILNER & PARTNERS,29299246,"6,513.90 "
Department of Health,NHS Sheffield CCG,31/10/2019,C&M-GMS Cost of Drugs -Prescribing,LOCAL ENHANCED SERVICES,DUKE MEDICAL CENTRE,29542102,"1,058.57 "
Department of Health,NHS Sheffield CCG,31/10/2019,C&M-GMS DES Minor Surgery,PRC DELEGATED CO-COMMISSIONING,DUKE MEDICAL CENTRE,29542102,"1,120.00 "
Department of Health,NHS Sheffield CCG,31/10/2019,C&M-GMS Global Sum,PRC DELEGATED CO-COMMISSIONING,DUKE MEDICAL CENTRE,29542102,"59,187.06 "
Department of Health,NHS Sheffield CCG,31/10/2019,C&M-GMS MPIG Correction Factor,PRC DELEGATED CO-COMMISSIONING,DUKE MEDICAL CENTRE,29542102,306.25 
Department of Health,NHS Sheffield CCG,31/10/2019,C&M-GMS PCN DES Participation,PRC DELEGATED CO-COMMISSIONING,DUKE MEDICAL CENTRE,29542102,"1,138.79 "
Department of Health,NHS Sheffield CCG,31/10/2019,C&M-GMS PCO Other,PRC DELEGATED CO-COMMISSIONING,DUKE MEDICAL CENTRE,29542102,458.30 
Department of Health,NHS Sheffield CCG,31/10/2019,C&M-GMS Prem Notional Rent,PRC DELEGATED CO-COMMISSIONING,DUKE MEDICAL CENTRE,29542102,"5,721.67 "
Department of Health,NHS Sheffield CCG,31/10/2019,C&M-GMS Prem Rates,PRC DELEGATED CO-COMMISSIONING,DUKE MEDICAL CENTRE,29542102,"1,311.00 "
Department of Health,NHS Sheffield CCG,31/10/2019,C&M-GMS Prof Fees Prescribing,PRC DELEGATED CO-COMMISSIONING,DUKE MEDICAL CENTRE,29542102,170.77 
Department of Health,NHS Sheffield CCG,31/10/2019,C&M-GMS QOF Aspiration,PRC DELEGATED CO-COMMISSIONING,DUKE MEDICAL CENTRE,29542102,"5,166.69 "
Department of Health,NHS Sheffield CCG,31/10/2019,C&M-PMS Contract Value,PRC DELEGATED CO-COMMISSIONING,DUNNINC ROAD SURGERY,29299248,"23,711.72 "
Department of Health,NHS Sheffield CCG,31/10/2019,C&M-PMS PCN DES Participation,PRC DELEGATED CO-COMMISSIONING,DUNNINC ROAD SURGERY,29299248,448.76 
Department of Health,NHS Sheffield CCG,31/10/2019,C&M-PMS Prem Notional Rent,PRC DELEGATED CO-COMMISSIONING,DUNNINC ROAD SURGERY,29299248,"1,695.83 "
Department of Health,NHS Sheffield CCG,31/10/2019,C&M-PMS QOF Aspiration,PRC DELEGATED CO-COMMISSIONING,DUNNINC ROAD SURGERY,29299248,"2,054.91 "
Department of Health,NHS Sheffield CCG,31/10/2019,C&M-PMS Contract Value,PRC DELEGATED CO-COMMISSIONING,DYKES HALL MEDICAL CENTRE,29299250,"73,046.07 "
Department of Health,NHS Sheffield CCG,31/10/2019,C&M-PMS DES Extended Hours Access,PRC DELEGATED CO-COMMISSIONING,DYKES HALL MEDICAL CENTRE,29299250,"4,412.49 "
Department of Health,NHS Sheffield CCG,31/10/2019,C&M-PMS Out of Hours Opt Outs,PRC DELEGATED CO-COMMISSIONING,DYKES HALL MEDICAL CENTRE,29299250,35.76 
Department of Health,NHS Sheffield CCG,31/10/2019,C&M-PMS PCN DES Clinical Director,PRC DELEGATED CO-COMMISSIONING,DYKES HALL MEDICAL CENTRE,29299250,"2,063.71 "
Department of Health,NHS Sheffield CCG,31/10/2019,C&M-PMS PCN DES PCN support,LOCAL ENHANCED SERVICES,DYKES HALL MEDICAL CENTRE,29299250,"4,516.88 "
Department of Health,NHS Sheffield CCG,31/10/2019,C&M-PMS PCN DES Participation,PRC DELEGATED CO-COMMISSIONING,DYKES HALL MEDICAL CENTRE,29299250,"1,386.86 "
Department of Health,NHS Sheffield CCG,31/10/2019,C&M-PMS Prem Notional Rent,PRC DELEGATED CO-COMMISSIONING,DYKES HALL MEDICAL CENTRE,29299250,"5,377.08 "
Department of Health,NHS Sheffield CCG,31/10/2019,C&M-PMS QOF Aspiration,PRC DELEGATED CO-COMMISSIONING,DYKES HALL MEDICAL CENTRE,29299250,"8,323.49 "
Department of Health,NHS Sheffield CCG,31/10/2019,C&M-PMS Contract Value,PRC DELEGATED CO-COMMISSIONING,EAST BANK MEDICAL CENTRE,29299252,"48,669.38 "
Department of Health,NHS Sheffield CCG,31/10/2019,C&M-PMS PCN DES Participation,PRC DELEGATED CO-COMMISSIONING,EAST BANK MEDICAL CENTRE,29299252,914.08 
Department of Health,NHS Sheffield CCG,31/10/2019,C&M-PMS Prem Notional Rent,PRC DELEGATED CO-COMMISSIONING,EAST BANK MEDICAL CENTRE,29299252,"10,583.33 "
Department of Health,NHS Sheffield CCG,31/10/2019,C&M-PMS Prem Rates,PRC DELEGATED CO-COMMISSIONING,EAST BANK MEDICAL CENTRE,29299252,"2,898.00 "
Department of Health,NHS Sheffield CCG,31/10/2019,C&M-PMS QOF Aspiration,PRC DELEGATED CO-COMMISSIONING,EAST BANK MEDICAL CENTRE,29299252,"5,026.31 "
Department of Health,NHS Sheffield CCG,31/10/2019,C&M-GMS Cost of Drugs -Prescribing,LOCAL ENHANCED SERVICES,ECCLESFIELD GROUP PRACTICE,29542098,"4,021.95 "
Department of Health,NHS Sheffield CCG,31/10/2019,C&M-GMS DES Extended Hours Access,PRC DELEGATED CO-COMMISSIONING,ECCLESFIELD GROUP PRACTICE,29542098,"5,190.33 "
Department of Health,NHS Sheffield CCG,31/10/2019,C&M-GMS DES Minor Surgery,PRC DELEGATED CO-COMMISSIONING,ECCLESFIELD GROUP PRACTICE,29542098,"1,000.00 "
Department of Health,NHS Sheffield CCG,31/10/2019,C&M-GMS Global Sum,PRC DELEGATED CO-COMMISSIONING,ECCLESFIELD GROUP PRACTICE,29542098,"70,117.10 "
Department of Health,NHS Sheffield CCG,31/10/2019,C&M-GMS PCN DES Clinical Director,PRC DELEGATED CO-COMMISSIONING,ECCLESFIELD GROUP PRACTICE,29542098,"2,427.51 "
Department of Health,NHS Sheffield CCG,31/10/2019,C&M-GMS PCN DES PCN support,LOCAL ENHANCED SERVICES,ECCLESFIELD GROUP PRACTICE,29542098,"5,313.13 "
Department of Health,NHS Sheffield CCG,31/10/2019,C&M-GMS PCN DES Participation,PRC DELEGATED CO-COMMISSIONING,ECCLESFIELD GROUP PRACTICE,29542098,"1,400.97 "
Department of Health,NHS Sheffield CCG,31/10/2019,C&M-GMS PCO Other,PRC DELEGATED CO-COMMISSIONING,ECCLESFIELD GROUP PRACTICE,29542098,525.30 
Department of Health,NHS Sheffield CCG,31/10/2019,C&M-GMS Prem Notional Rent,PRC DELEGATED CO-COMMISSIONING,ECCLESFIELD GROUP PRACTICE,29542098,"6,805.42 "
Department of Health,NHS Sheffield CCG,31/10/2019,C&M-GMS Prem Rates,PRC DELEGATED CO-COMMISSIONING,ECCLESFIELD GROUP PRACTICE,29542098,"1,527.00 "
Department of Health,NHS Sheffield CCG,31/10/2019,C&M-GMS Prof Fees Prescribing,PRC DELEGATED CO-COMMISSIONING,ECCLESFIELD GROUP PRACTICE,29542098,351.15 
Department of Health,NHS Sheffield CCG,31/10/2019,C&M-GMS QOF Aspiration,PRC DELEGATED CO-COMMISSIONING,ECCLESFIELD GROUP PRACTICE,29542098,"9,179.49 "
Department of Health,NHS Sheffield CCG,31/10/2019,C&M-PMS LES Presc Incentive Sch,LOCAL ENHANCED SERVICES,ECCLESFIELD GROUP PRACTICE,29549294,"26,058.67 "
Department of Health,NHS Sheffield CCG,31/10/2019,C&M-GMS Cost of Drugs -Prescribing,LOCAL ENHANCED SERVICES,ELM LANE SURGERY,29542100,"1,687.82 "
Department of Health,NHS Sheffield CCG,31/10/2019,C&M-GMS DES Minor Surgery,PRC DELEGATED CO-COMMISSIONING,ELM LANE SURGERY,29542100,80.00 
Department of Health,NHS Sheffield CCG,31/10/2019,C&M-GMS Global Sum,PRC DELEGATED CO-COMMISSIONING,ELM LANE SURGERY,29542100,"41,569.36 "
Department of Health,NHS Sheffield CCG,31/10/2019,C&M-GMS MPIG Correction Factor,PRC DELEGATED CO-COMMISSIONING,ELM LANE SURGERY,29542100,419.26 
Department of Health,NHS Sheffield CCG,31/10/2019,C&M-GMS PCN DES Participation,PRC DELEGATED CO-COMMISSIONING,ELM LANE SURGERY,29542100,821.44 
Department of Health,NHS Sheffield CCG,31/10/2019,C&M-GMS Prem Notional Rent,PRC DELEGATED CO-COMMISSIONING,ELM LANE SURGERY,29542100,"5,305.50 "
Department of Health,NHS Sheffield CCG,31/10/2019,C&M-GMS Prof Fees Prescribing,PRC DELEGATED CO-COMMISSIONING,ELM LANE SURGERY,29542100,163.54 
Department of Health,NHS Sheffield CCG,31/10/2019,C&M-GMS QOF Aspiration,PRC DELEGATED CO-COMMISSIONING,ELM LANE SURGERY,29542100,"4,720.25 "
Department of Health,NHS Sheffield CCG,31/10/2019,Cont Care-Physical Disab (<65),CHC ADULT FULLY FUNDED,FAIRWINDS HEALTH CARE LTD,29311065,"39,203.66 "
Department of Health,NHS Sheffield CCG,31/10/2019,C&M-PMS Contract Value,PRC DELEGATED CO-COMMISSIONING,FALKLAND HOUSE,29299256,"26,085.22 "
Department of Health,NHS Sheffield CCG,31/10/2019,C&M-PMS PCN DES Participation,PRC DELEGATED CO-COMMISSIONING,FALKLAND HOUSE,29299256,495.54 
Department of Health,NHS Sheffield CCG,31/10/2019,C&M-PMS PCO Other,PRC DELEGATED CO-COMMISSIONING,FALKLAND HOUSE,29299256,276.40 
Department of Health,NHS Sheffield CCG,31/10/2019,C&M-PMS Prem Notional Rent,PRC DELEGATED CO-COMMISSIONING,FALKLAND HOUSE,29299256,"1,866.67 "
Department of Health,NHS Sheffield CCG,31/10/2019,C&M-PMS Prem Rates,PRC DELEGATED CO-COMMISSIONING,FALKLAND HOUSE,29299256,773.00 
Department of Health,NHS Sheffield CCG,31/10/2019,C&M-PMS QOF Aspiration,PRC DELEGATED CO-COMMISSIONING,FALKLAND HOUSE,29299256,"2,925.24 "
Department of Health,NHS Sheffield CCG,31/10/2019,C&M-GMS Cost of Drugs -Prescribing,LOCAL ENHANCED SERVICES,FAR LANE MEDICAL CENTRE,29542109,295.30 
Department of Health,NHS Sheffield CCG,31/10/2019,C&M-GMS DES Minor Surgery,PRC DELEGATED CO-COMMISSIONING,FAR LANE MEDICAL CENTRE,29542109,"5,010.00 "
Department of Health,NHS Sheffield CCG,31/10/2019,C&M-GMS Global Sum,PRC DELEGATED CO-COMMISSIONING,FAR LANE MEDICAL CENTRE,29542109,"55,822.86 "
Department of Health,NHS Sheffield CCG,31/10/2019,C&M-GMS PCN DES Participation,PRC DELEGATED CO-COMMISSIONING,FAR LANE MEDICAL CENTRE,29542109,"1,138.48 "
Department of Health,NHS Sheffield CCG,31/10/2019,C&M-GMS PCO Other,PRC DELEGATED CO-COMMISSIONING,FAR LANE MEDICAL CENTRE,29542109,462.30 
Department of Health,NHS Sheffield CCG,31/10/2019,C&M-GMS Prem Notional Rent,PRC DELEGATED CO-COMMISSIONING,FAR LANE MEDICAL CENTRE,29542109,"3,462.50 "
Department of Health,NHS Sheffield CCG,31/10/2019,C&M-GMS Prem Rates,PRC DELEGATED CO-COMMISSIONING,FAR LANE MEDICAL CENTRE,29542109,"1,184.00 "
Department of Health,NHS Sheffield CCG,31/10/2019,C&M-GMS Prem Water Rates,PRC DELEGATED CO-COMMISSIONING,FAR LANE MEDICAL CENTRE,29542109,72.01 
Department of Health,NHS Sheffield CCG,31/10/2019,C&M-GMS Prof Fees Prescribing,PRC DELEGATED CO-COMMISSIONING,FAR LANE MEDICAL CENTRE,29542109,52.92 
Department of Health,NHS Sheffield CCG,31/10/2019,C&M-GMS QOF Aspiration,PRC DELEGATED CO-COMMISSIONING,FAR LANE MEDICAL CENTRE,29542109,"5,719.80 "
Department of Health,NHS Sheffield CCG,31/10/2019,C&M-PMS Contract Value,PRC DELEGATED CO-COMMISSIONING,FIRTH PARK SURGERY,29299254,"74,885.12 "
Department of Health,NHS Sheffield CCG,31/10/2019,C&M-PMS Out of Hours Opt Outs,PRC DELEGATED CO-COMMISSIONING,FIRTH PARK SURGERY,29299254,21.34 
Department of Health,NHS Sheffield CCG,31/10/2019,C&M-PMS PCN DES Participation,PRC DELEGATED CO-COMMISSIONING,FIRTH PARK SURGERY,29299254,"1,468.51 "
Department of Health,NHS Sheffield CCG,31/10/2019,C&M-PMS Prem Notional Rent,PRC DELEGATED CO-COMMISSIONING,FIRTH PARK SURGERY,29299254,"4,500.00 "
Department of Health,NHS Sheffield CCG,31/10/2019,C&M-PMS Prem Rates,PRC DELEGATED CO-COMMISSIONING,FIRTH PARK SURGERY,29299254,"1,360.00 "
Department of Health,NHS Sheffield CCG,31/10/2019,C&M-PMS QOF Aspiration,PRC DELEGATED CO-COMMISSIONING,FIRTH PARK SURGERY,29299254,"7,493.92 "
Department of Health,NHS Sheffield CCG,31/10/2019,C&M-PMS LES Presc Incentive Sch,LOCAL ENHANCED SERVICES,FIRTH PARK SURGERY,29549347,"31,400.00 "
Department of Health,NHS Sheffield CCG,31/10/2019,C&M-PMS Contract Value,PRC DELEGATED CO-COMMISSIONING,FORGE HEALTH GROUP,29299302,"119,176.77 "
Department of Health,NHS Sheffield CCG,31/10/2019,C&M-PMS DES Extended Hours Access,PRC DELEGATED CO-COMMISSIONING,FORGE HEALTH GROUP,29299302,"6,869.48 "
Department of Health,NHS Sheffield CCG,31/10/2019,C&M-PMS DES Learn Dsblty Hlth Chk,PRC DELEGATED CO-COMMISSIONING,FORGE HEALTH GROUP,29299302,"1,400.00 "
Department of Health,NHS Sheffield CCG,31/10/2019,C&M-PMS Out of Hours Opt Outs,PRC DELEGATED CO-COMMISSIONING,FORGE HEALTH GROUP,29299302,10.15 
Department of Health,NHS Sheffield CCG,31/10/2019,C&M-PMS PCN DES Clinical Director,PRC DELEGATED CO-COMMISSIONING,FORGE HEALTH GROUP,29299302,"3,212.84 "
Department of Health,NHS Sheffield CCG,31/10/2019,C&M-PMS PCN DES PCN support,LOCAL ENHANCED SERVICES,FORGE HEALTH GROUP,29299302,"7,032.00 "
Department of Health,NHS Sheffield CCG,31/10/2019,C&M-PMS PCN DES Participation,PRC DELEGATED CO-COMMISSIONING,FORGE HEALTH GROUP,29299302,"2,225.15 "
Department of Health,NHS Sheffield CCG,31/10/2019,C&M-PMS PCO Locum Adop/Pat/Mat,PRC DELEGATED CO-COMMISSIONING,FORGE HEALTH GROUP,29299302,417.90 
Department of Health,NHS Sheffield CCG,31/10/2019,C&M-PMS Prem Healthcentre Rent,PRC DELEGATED CO-COMMISSIONING,FORGE HEALTH GROUP,29299302,"32,899.56 "
Department of Health,NHS Sheffield CCG,31/10/2019,C&M-PMS Prem Notional Rent,PRC DELEGATED CO-COMMISSIONING,FORGE HEALTH GROUP,29299302,"9,650.00 "
Department of Health,NHS Sheffield CCG,31/10/2019,C&M-PMS Prem Rates,PRC DELEGATED CO-COMMISSIONING,FORGE HEALTH GROUP,29299302,"1,990.00 "
Department of Health,NHS Sheffield CCG,31/10/2019,C&M-PMS Prem Water Rates,PRC DELEGATED CO-COMMISSIONING,FORGE HEALTH GROUP,29299302,81.51 
Department of Health,NHS Sheffield CCG,31/10/2019,C&M-PMS QOF Aspiration,PRC DELEGATED CO-COMMISSIONING,FORGE HEALTH GROUP,29299302,"15,901.28 "
Department of Health,NHS Sheffield CCG,31/10/2019,C&M-PMS LES Presc Incentive Sch,LOCAL ENHANCED SERVICES,FORGE HEALTH GROUP,29549304,"44,859.00 "
Department of Health,NHS Sheffield CCG,31/10/2019,Cont Care-Physical Disab (<65),CHC ADULT FULLY FUNDED,FOUR SEASONS HEALTH CARE LTD,29310984,"42,391.27 "
Department of Health,NHS Sheffield CCG,31/10/2019,C&M-PMS Contract Value,PRC DELEGATED CO-COMMISSIONING,FOXHILL MEDICAL CENTRE SHEFFIELD,29299300,"51,856.01 "
Department of Health,NHS Sheffield CCG,31/10/2019,C&M-PMS PCN DES Participation,PRC DELEGATED CO-COMMISSIONING,FOXHILL MEDICAL CENTRE SHEFFIELD,29299300,977.79 
Department of Health,NHS Sheffield CCG,31/10/2019,C&M-PMS PCO Other,PRC DELEGATED CO-COMMISSIONING,FOXHILL MEDICAL CENTRE SHEFFIELD,29299300,400.60 
Department of Health,NHS Sheffield CCG,31/10/2019,C&M-PMS Prem Healthcentre Rent,PRC DELEGATED CO-COMMISSIONING,FOXHILL MEDICAL CENTRE SHEFFIELD,29299300,"46,751.17 "
Department of Health,NHS Sheffield CCG,31/10/2019,C&M-PMS QOF Aspiration,PRC DELEGATED CO-COMMISSIONING,FOXHILL MEDICAL CENTRE SHEFFIELD,29299300,"5,618.87 "
Department of Health,NHS Sheffield CCG,31/10/2019,C&M-PMS Contract Value,PRC DELEGATED CO-COMMISSIONING,GLEADLESS MEDICAL CENTRE,29299258,"68,911.89 "
Department of Health,NHS Sheffield CCG,31/10/2019,C&M-PMS Out of Hours Opt Outs,PRC DELEGATED CO-COMMISSIONING,GLEADLESS MEDICAL CENTRE,29299258,1.29 
Department of Health,NHS Sheffield CCG,31/10/2019,C&M-PMS PCN DES Participation,PRC DELEGATED CO-COMMISSIONING,GLEADLESS MEDICAL CENTRE,29299258,"1,300.70 "
Department of Health,NHS Sheffield CCG,31/10/2019,C&M-PMS PCO Other,PRC DELEGATED CO-COMMISSIONING,GLEADLESS MEDICAL CENTRE,29299258,551.40 
Department of Health,NHS Sheffield CCG,31/10/2019,C&M-PMS Prem Notional Rent,PRC DELEGATED CO-COMMISSIONING,GLEADLESS MEDICAL CENTRE,29299258,"6,750.00 "
Department of Health,NHS Sheffield CCG,31/10/2019,C&M-PMS Prem Rates,PRC DELEGATED CO-COMMISSIONING,GLEADLESS MEDICAL CENTRE,29299258,"1,657.00 "
Department of Health,NHS Sheffield CCG,31/10/2019,C&M-PMS QOF Aspiration,PRC DELEGATED CO-COMMISSIONING,GLEADLESS MEDICAL CENTRE,29299258,"7,710.90 "
Department of Health,NHS Sheffield CCG,31/10/2019,C&M-PMS LES Presc Incentive Sch,LOCAL ENHANCED SERVICES,GLEADLESS MEDICAL CENTRE,29572468,"26,742.00 "
Department of Health,NHS Sheffield CCG,31/10/2019,C&M-GMS Cost of Drugs -Prescribing,LOCAL ENHANCED SERVICES,GRENOSIDE SURGERY,29542116,850.10 
Department of Health,NHS Sheffield CCG,31/10/2019,C&M-GMS DES Minor Surgery,PRC DELEGATED CO-COMMISSIONING,GRENOSIDE SURGERY,29542116,410.00 
Department of Health,NHS Sheffield CCG,31/10/2019,C&M-GMS Global Sum,PRC DELEGATED CO-COMMISSIONING,GRENOSIDE SURGERY,29542116,"59,353.17 "
Department of Health,NHS Sheffield CCG,31/10/2019,C&M-GMS PCN DES Participation,PRC DELEGATED CO-COMMISSIONING,GRENOSIDE SURGERY,29542116,"1,190.25 "
Department of Health,NHS Sheffield CCG,31/10/2019,C&M-GMS PCO Other,PRC DELEGATED CO-COMMISSIONING,GRENOSIDE SURGERY,29542116,475.50 
Department of Health,NHS Sheffield CCG,31/10/2019,C&M-GMS Prem Notional Rent,PRC DELEGATED CO-COMMISSIONING,GRENOSIDE SURGERY,29542116,"8,110.42 "
Department of Health,NHS Sheffield CCG,31/10/2019,C&M-GMS Prem Rates,PRC DELEGATED CO-COMMISSIONING,GRENOSIDE SURGERY,29542116,"2,075.00 "
Department of Health,NHS Sheffield CCG,31/10/2019,C&M-GMS Prof Fees Prescribing,PRC DELEGATED CO-COMMISSIONING,GRENOSIDE SURGERY,29542116,98.61 
Department of Health,NHS Sheffield CCG,31/10/2019,C&M-GMS QOF Aspiration,PRC DELEGATED CO-COMMISSIONING,GRENOSIDE SURGERY,29542116,"5,686.85 "
Department of Health,NHS Sheffield CCG,31/10/2019,C&M-GMS Cost of Drugs -Prescribing,LOCAL ENHANCED SERVICES,GREYSTONES MEDICAL CENTRE,29542118,99.83 
Department of Health,NHS Sheffield CCG,31/10/2019,C&M-GMS Global Sum,PRC DELEGATED CO-COMMISSIONING,GREYSTONES MEDICAL CENTRE,29542118,"20,082.12 "
Department of Health,NHS Sheffield CCG,31/10/2019,C&M-GMS MPIG Correction Factor,PRC DELEGATED CO-COMMISSIONING,GREYSTONES MEDICAL CENTRE,29542118,552.23 
Department of Health,NHS Sheffield CCG,31/10/2019,C&M-GMS PCN DES Participation,PRC DELEGATED CO-COMMISSIONING,GREYSTONES MEDICAL CENTRE,29542118,405.94 
Department of Health,NHS Sheffield CCG,31/10/2019,C&M-GMS PCO Other,PRC DELEGATED CO-COMMISSIONING,GREYSTONES MEDICAL CENTRE,29542118,263.10 
Department of Health,NHS Sheffield CCG,31/10/2019,C&M-GMS Prem Notional Rent,PRC DELEGATED CO-COMMISSIONING,GREYSTONES MEDICAL CENTRE,29542118,"2,885.42 "
Department of Health,NHS Sheffield CCG,31/10/2019,C&M-GMS Prem Rates,PRC DELEGATED CO-COMMISSIONING,GREYSTONES MEDICAL CENTRE,29542118,606.00 
Department of Health,NHS Sheffield CCG,31/10/2019,C&M-GMS Prof Fees Prescribing,PRC DELEGATED CO-COMMISSIONING,GREYSTONES MEDICAL CENTRE,29542118,21.65 
Department of Health,NHS Sheffield CCG,31/10/2019,C&M-GMS QOF Aspiration,PRC DELEGATED CO-COMMISSIONING,GREYSTONES MEDICAL CENTRE,29542118,"2,314.72 "
Department of Health,NHS Sheffield CCG,31/10/2019,C&M-PMS GP Statutory Levy,PRC DELEGATED CO-COMMISSIONING,HACKENTHORPE MEDICAL CENTRE,29299259,(236.74)
Department of Health,NHS Sheffield CCG,31/10/2019,C&M-PMS Out of Hours Opt Outs,PRC DELEGATED CO-COMMISSIONING,HACKENTHORPE MEDICAL CENTRE,29299259,"(2,290.86)"
Department of Health,NHS Sheffield CCG,31/10/2019,C&M-PMS Contract Value,PRC DELEGATED CO-COMMISSIONING,HACKENTHORPE MEDICAL CENTRE,29299260,"48,940.59 "
Department of Health,NHS Sheffield CCG,31/10/2019,C&M-PMS PCN DES Participation,PRC DELEGATED CO-COMMISSIONING,HACKENTHORPE MEDICAL CENTRE,29299260,926.86 
Department of Health,NHS Sheffield CCG,31/10/2019,C&M-PMS PCO Locum Adop/Pat/Mat,PRC DELEGATED CO-COMMISSIONING,HACKENTHORPE MEDICAL CENTRE,29299260,"28,047.09 "
Department of Health,NHS Sheffield CCG,31/10/2019,C&M-PMS PCO Other,PRC DELEGATED CO-COMMISSIONING,HACKENTHORPE MEDICAL CENTRE,29299260,435.20 
Department of Health,NHS Sheffield CCG,31/10/2019,C&M-PMS Prem Notional Rent,PRC DELEGATED CO-COMMISSIONING,HACKENTHORPE MEDICAL CENTRE,29299260,"5,116.67 "
Department of Health,NHS Sheffield CCG,31/10/2019,C&M-PMS Prem Rates,PRC DELEGATED CO-COMMISSIONING,HACKENTHORPE MEDICAL CENTRE,29299260,"1,363.00 "
Department of Health,NHS Sheffield CCG,31/10/2019,C&M-PMS QOF Aspiration,PRC DELEGATED CO-COMMISSIONING,HACKENTHORPE MEDICAL CENTRE,29299260,"6,528.39 "
Department of Health,NHS Sheffield CCG,31/10/2019,C&M-GMS Cost of Drugs -Prescribing,LOCAL ENHANCED SERVICES,HANDSWORTH MEDICAL PRACTICE SHEFFIELD,29557021,"1,073.27 "
Department of Health,NHS Sheffield CCG,31/10/2019,C&M-GMS DES Minor Surgery,PRC DELEGATED CO-COMMISSIONING,HANDSWORTH MEDICAL PRACTICE SHEFFIELD,29557021,400.00 
Department of Health,NHS Sheffield CCG,31/10/2019,C&M-GMS Global Sum,PRC DELEGATED CO-COMMISSIONING,HANDSWORTH MEDICAL PRACTICE SHEFFIELD,29557021,"77,964.76 "
Department of Health,NHS Sheffield CCG,31/10/2019,C&M-GMS PCN DES Participation,PRC DELEGATED CO-COMMISSIONING,HANDSWORTH MEDICAL PRACTICE SHEFFIELD,29557021,"1,567.06 "
Department of Health,NHS Sheffield CCG,31/10/2019,C&M-GMS PCO Locum Sickness,PRC DELEGATED CO-COMMISSIONING,HANDSWORTH MEDICAL PRACTICE SHEFFIELD,29557021,"5,692.30 "
Department of Health,NHS Sheffield CCG,31/10/2019,C&M-GMS Prem Notional Rent,PRC DELEGATED CO-COMMISSIONING,HANDSWORTH MEDICAL PRACTICE SHEFFIELD,29557021,"3,321.66 "
Department of Health,NHS Sheffield CCG,31/10/2019,C&M-GMS Prem Water Rates,PRC DELEGATED CO-COMMISSIONING,HANDSWORTH MEDICAL PRACTICE SHEFFIELD,29557021,166.86 
Department of Health,NHS Sheffield CCG,31/10/2019,C&M-GMS Prof Fees Prescribing,PRC DELEGATED CO-COMMISSIONING,HANDSWORTH MEDICAL PRACTICE SHEFFIELD,29557021,211.65 
Department of Health,NHS Sheffield CCG,31/10/2019,C&M-GMS QOF Aspiration,PRC DELEGATED CO-COMMISSIONING,HANDSWORTH MEDICAL PRACTICE SHEFFIELD,29557021,"7,811.29 "
Department of Health,NHS Sheffield CCG,31/10/2019,C&M-PMS LES Presc Incentive Sch,LOCAL ENHANCED SERVICES,HANDSWORTH MEDICAL PRACTICE SHEFFIELD,29572469,"30,400.00 "
Department of Health,NHS Sheffield CCG,31/10/2019,C&M-GMS Global Sum,PRC DELEGATED CO-COMMISSIONING,HAROLD STREET MEDICAL CENTRE,29542112,"19,882.84 "
Department of Health,NHS Sheffield CCG,31/10/2019,C&M-GMS PCN DES Participation,PRC DELEGATED CO-COMMISSIONING,HAROLD STREET MEDICAL CENTRE,29542112,432.48 
Department of Health,NHS Sheffield CCG,31/10/2019,C&M-GMS PCO Other,PRC DELEGATED CO-COMMISSIONING,HAROLD STREET MEDICAL CENTRE,29542112,233.00 
Department of Health,NHS Sheffield CCG,31/10/2019,C&M-GMS Prem Notional Rent,PRC DELEGATED CO-COMMISSIONING,HAROLD STREET MEDICAL CENTRE,29542112,"2,337.50 "
Department of Health,NHS Sheffield CCG,31/10/2019,C&M-GMS QOF Aspiration,PRC DELEGATED CO-COMMISSIONING,HAROLD STREET MEDICAL CENTRE,29542112,"2,228.59 "
Department of Health,NHS Sheffield CCG,31/10/2019,C&M-GMS Cost of Drugs -Prescribing,LOCAL ENHANCED SERVICES,HEALTH CARE SURGERY,29542124,"1,013.01 "
Department of Health,NHS Sheffield CCG,31/10/2019,C&M-GMS DES Minor Surgery,PRC DELEGATED CO-COMMISSIONING,HEALTH CARE SURGERY,29542124,40.00 
Department of Health,NHS Sheffield CCG,31/10/2019,C&M-GMS Global Sum,PRC DELEGATED CO-COMMISSIONING,HEALTH CARE SURGERY,29542124,"37,991.09 "
Department of Health,NHS Sheffield CCG,31/10/2019,C&M-GMS MPIG Correction Factor,PRC DELEGATED CO-COMMISSIONING,HEALTH CARE SURGERY,29542124,390.01 
Department of Health,NHS Sheffield CCG,31/10/2019,C&M-GMS PCN DES Participation,PRC DELEGATED CO-COMMISSIONING,HEALTH CARE SURGERY,29542124,796.77 
Department of Health,NHS Sheffield CCG,31/10/2019,C&M-GMS PCO Other,PRC DELEGATED CO-COMMISSIONING,HEALTH CARE SURGERY,29542124,342.10 
Department of Health,NHS Sheffield CCG,31/10/2019,C&M-GMS Prem Notional Rent,PRC DELEGATED CO-COMMISSIONING,HEALTH CARE SURGERY,29542124,"3,862.50 "
Department of Health,NHS Sheffield CCG,31/10/2019,C&M-GMS Prem Rates,PRC DELEGATED CO-COMMISSIONING,HEALTH CARE SURGERY,29542124,645.88 
Department of Health,NHS Sheffield CCG,31/10/2019,C&M-GMS Prof Fees Prescribing,PRC DELEGATED CO-COMMISSIONING,HEALTH CARE SURGERY,29542124,103.42 
Department of Health,NHS Sheffield CCG,31/10/2019,C&M-GMS QOF Aspiration,PRC DELEGATED CO-COMMISSIONING,HEALTH CARE SURGERY,29542124,"4,056.36 "
Department of Health,NHS Sheffield CCG,31/10/2019,C&M-GMS Cost of Drugs -Prescribing,LOCAL ENHANCED SERVICES,HEELEY GREEN SURGERY,29542120,818.08 
Department of Health,NHS Sheffield CCG,31/10/2019,C&M-GMS Global Sum,PRC DELEGATED CO-COMMISSIONING,HEELEY GREEN SURGERY,29542120,"42,237.14 "
Department of Health,NHS Sheffield CCG,31/10/2019,C&M-GMS MPIG Correction Factor,PRC DELEGATED CO-COMMISSIONING,HEELEY GREEN SURGERY,29542120,188.10 
Department of Health,NHS Sheffield CCG,31/10/2019,C&M-GMS PCN DES Participation,PRC DELEGATED CO-COMMISSIONING,HEELEY GREEN SURGERY,29542120,875.00 
Department of Health,NHS Sheffield CCG,31/10/2019,C&M-GMS Prem Notional Rent,PRC DELEGATED CO-COMMISSIONING,HEELEY GREEN SURGERY,29542120,"3,254.17 "
Department of Health,NHS Sheffield CCG,31/10/2019,C&M-GMS Prem Rates,PRC DELEGATED CO-COMMISSIONING,HEELEY GREEN SURGERY,29542120,305.00 
Department of Health,NHS Sheffield CCG,31/10/2019,C&M-GMS Prof Fees Prescribing,PRC DELEGATED CO-COMMISSIONING,HEELEY GREEN SURGERY,29542120,144.32 
Department of Health,NHS Sheffield CCG,31/10/2019,C&M-GMS QOF Aspiration,PRC DELEGATED CO-COMMISSIONING,HEELEY GREEN SURGERY,29542120,"4,709.02 "
Department of Health,NHS Sheffield CCG,31/10/2019,C&M-GMS Cost of Drugs -Prescribing,LOCAL ENHANCED SERVICES,HOLLIES MEDICAL CENTRE,29542122,669.03 
Department of Health,NHS Sheffield CCG,31/10/2019,C&M-GMS DES Minor Surgery,PRC DELEGATED CO-COMMISSIONING,HOLLIES MEDICAL CENTRE,29542122,615.00 
Department of Health,NHS Sheffield CCG,31/10/2019,C&M-GMS Global Sum,PRC DELEGATED CO-COMMISSIONING,HOLLIES MEDICAL CENTRE,29542122,"61,598.03 "
Department of Health,NHS Sheffield CCG,31/10/2019,C&M-GMS MPIG Correction Factor,PRC DELEGATED CO-COMMISSIONING,HOLLIES MEDICAL CENTRE,29542122,726.36 
Department of Health,NHS Sheffield CCG,31/10/2019,C&M-GMS PCN DES Participation,PRC DELEGATED CO-COMMISSIONING,HOLLIES MEDICAL CENTRE,29542122,"1,215.60 "
Department of Health,NHS Sheffield CCG,31/10/2019,C&M-GMS Prem Notional Rent,PRC DELEGATED CO-COMMISSIONING,HOLLIES MEDICAL CENTRE,29542122,"3,229.17 "
Department of Health,NHS Sheffield CCG,31/10/2019,C&M-GMS Prof Fees Prescribing,PRC DELEGATED CO-COMMISSIONING,HOLLIES MEDICAL CENTRE,29542122,45.71 
Department of Health,NHS Sheffield CCG,31/10/2019,C&M-GMS QOF Aspiration,PRC DELEGATED CO-COMMISSIONING,HOLLIES MEDICAL CENTRE,29542122,"6,991.81 "
Department of Health,NHS Sheffield CCG,31/10/2019,Cont Care-Physical Disab (<65),CHC ADULT FULLY FUNDED,HORIZON CARE HOMES LTD,29310689,"31,029.92 "
Department of Health,NHS Sheffield CCG,31/10/2019,Cont Care-Physical Disab (<65),CHC ADULT FULLY FUNDED,HORIZON CARE HOMES LTD,29310745,"66,047.58 "
Department of Health,NHS Sheffield CCG,31/10/2019,Cont Care- Prior Year Payments,CHC ADULT FULLY FUNDED,HORIZON CARE HOMES LTD,29310974,"(53,829.26)"
Department of Health,NHS Sheffield CCG,31/10/2019,Cont Care- Prior Year Payments,CHC ADULT FULLY FUNDED,HORIZON CARE HOMES LTD,29345795,"38,896.52 "
Department of Health,NHS Sheffield CCG,31/10/2019,C&M-PMS Contract Value,PRC DELEGATED CO-COMMISSIONING,JAUNTY SPRINGS HEALTH CENTRE,29299262,"30,921.93 "
Department of Health,NHS Sheffield CCG,31/10/2019,C&M-PMS DES Extended Hours Access,PRC DELEGATED CO-COMMISSIONING,JAUNTY SPRINGS HEALTH CENTRE,29299262,"4,210.64 "
Department of Health,NHS Sheffield CCG,31/10/2019,C&M-PMS Out of Hours Opt Outs,PRC DELEGATED CO-COMMISSIONING,JAUNTY SPRINGS HEALTH CENTRE,29299262,0.17 
Department of Health,NHS Sheffield CCG,31/10/2019,C&M-PMS PCN DES Clinical Director,PRC DELEGATED CO-COMMISSIONING,JAUNTY SPRINGS HEALTH CENTRE,29299262,"1,969.31 "
Department of Health,NHS Sheffield CCG,31/10/2019,C&M-PMS PCN DES PCN support,LOCAL ENHANCED SERVICES,JAUNTY SPRINGS HEALTH CENTRE,29299262,"4,310.25 "
Department of Health,NHS Sheffield CCG,31/10/2019,C&M-PMS PCN DES Participation,PRC DELEGATED CO-COMMISSIONING,JAUNTY SPRINGS HEALTH CENTRE,29299262,583.08 
Department of Health,NHS Sheffield CCG,31/10/2019,C&M-PMS PCO Other,PRC DELEGATED CO-COMMISSIONING,JAUNTY SPRINGS HEALTH CENTRE,29299262,263.60 
Department of Health,NHS Sheffield CCG,31/10/2019,C&M-PMS Prem Notional Rent,PRC DELEGATED CO-COMMISSIONING,JAUNTY SPRINGS HEALTH CENTRE,29299262,"3,208.33 "
Department of Health,NHS Sheffield CCG,31/10/2019,C&M-PMS Prem Rates,PRC DELEGATED CO-COMMISSIONING,JAUNTY SPRINGS HEALTH CENTRE,29299262,710.00 
Department of Health,NHS Sheffield CCG,31/10/2019,C&M-PMS Prem Water Rates,PRC DELEGATED CO-COMMISSIONING,JAUNTY SPRINGS HEALTH CENTRE,29299262,53.64 
Department of Health,NHS Sheffield CCG,31/10/2019,C&M-PMS QOF Aspiration,PRC DELEGATED CO-COMMISSIONING,JAUNTY SPRINGS HEALTH CENTRE,29299262,"4,020.11 "
Department of Health,NHS Sheffield CCG,31/10/2019,C&M-GMS LES Translation Fees,INTERPRETING SERVICES,LANGUAGELINE SOLUTIONS,29286645,"27,864.00 "
Department of Health,NHS Sheffield CCG,31/10/2019,C&M-GMS LES Translation Fees,INTERPRETING SERVICES,LANGUAGELINE SOLUTIONS,29327708,"49,894.56 "
Department of Health,NHS Sheffield CCG,31/10/2019,Hcare Srv Rec NHS Trust-Contract Baseline,ACUTE COMMISSIONING,LEEDS TEACHING HOSPITALS NHS TRUST,29239010,"(49,949.10)"
Department of Health,NHS Sheffield CCG,31/10/2019,Hcare Srv Rec NHS Trust-Contract Baseline,ACUTE COMMISSIONING,LEEDS TEACHING HOSPITALS NHS TRUST,29239025,"57,500.00 "
Department of Health,NHS Sheffield CCG,31/10/2019,Cont Care-Physical Disab (<65),CHC ADULT FULLY FUNDED,LONGLEY HEALTH CARE LTD,29286699,"94,758.83 "
Department of Health,NHS Sheffield CCG,31/10/2019,Cont Care-Physical Disab (<65),CHC ADULT FULLY FUNDED,LOXLEY HEALTH CARE LTD,29286695,"96,462.67 "
Department of Health,NHS Sheffield CCG,31/10/2019,C&M-PMS Contract Value,PRC DELEGATED CO-COMMISSIONING,MANCHESTER ROAD SURGERY SHEFFIELD,29299266,"33,027.37 "
Department of Health,NHS Sheffield CCG,31/10/2019,C&M-PMS PCN DES Participation,PRC DELEGATED CO-COMMISSIONING,MANCHESTER ROAD SURGERY SHEFFIELD,29299266,618.32 
Department of Health,NHS Sheffield CCG,31/10/2019,C&M-PMS Prem Cost Rent,PRC DELEGATED CO-COMMISSIONING,MANCHESTER ROAD SURGERY SHEFFIELD,29299266,"3,472.17 "
Department of Health,NHS Sheffield CCG,31/10/2019,C&M-PMS Prem Notional Rent,PRC DELEGATED CO-COMMISSIONING,MANCHESTER ROAD SURGERY SHEFFIELD,29299266,442.92 
Department of Health,NHS Sheffield CCG,31/10/2019,C&M-PMS Prem Rates,PRC DELEGATED CO-COMMISSIONING,MANCHESTER ROAD SURGERY SHEFFIELD,29299266,970.00 
Department of Health,NHS Sheffield CCG,31/10/2019,C&M-PMS Prem Water Rates,PRC DELEGATED CO-COMMISSIONING,MANCHESTER ROAD SURGERY SHEFFIELD,29299266,116.16 
Department of Health,NHS Sheffield CCG,31/10/2019,C&M-PMS QOF Aspiration,PRC DELEGATED CO-COMMISSIONING,MANCHESTER ROAD SURGERY SHEFFIELD,29299266,"3,985.36 "
Department of Health,NHS Sheffield CCG,31/10/2019,C&M-PMS Contract Value,PRC DELEGATED CO-COMMISSIONING,MANOR & PARK GROUP PRACTICE,29298702,"72,704.78 "
Department of Health,NHS Sheffield CCG,31/10/2019,C&M-PMS Out of Hours Opt Outs,PRC DELEGATED CO-COMMISSIONING,MANOR & PARK GROUP PRACTICE,29298702,79.42 
Department of Health,NHS Sheffield CCG,31/10/2019,C&M-PMS PCN DES Participation,PRC DELEGATED CO-COMMISSIONING,MANOR & PARK GROUP PRACTICE,29298702,"1,445.35 "
Department of Health,NHS Sheffield CCG,31/10/2019,C&M-PMS PCO Locum Adop/Pat/Mat,PRC DELEGATED CO-COMMISSIONING,MANOR & PARK GROUP PRACTICE,29298702,"12,731.08 "
Department of Health,NHS Sheffield CCG,31/10/2019,C&M-PMS Prem Notional Rent,PRC DELEGATED CO-COMMISSIONING,MANOR & PARK GROUP PRACTICE,29298702,"9,050.00 "
Department of Health,NHS Sheffield CCG,31/10/2019,C&M-PMS Prem Rates,PRC DELEGATED CO-COMMISSIONING,MANOR & PARK GROUP PRACTICE,29298702,"1,747.00 "
Department of Health,NHS Sheffield CCG,31/10/2019,C&M-PMS Prem Water Rates,PRC DELEGATED CO-COMMISSIONING,MANOR & PARK GROUP PRACTICE,29298702,757.35 
Department of Health,NHS Sheffield CCG,31/10/2019,C&M-PMS QOF Aspiration,PRC DELEGATED CO-COMMISSIONING,MANOR & PARK GROUP PRACTICE,29298702,"7,420.75 "
Department of Health,NHS Sheffield CCG,31/10/2019,C&M-PMS LES Presc Incentive Sch,LOCAL ENHANCED SERVICES,MANOR & PARK GROUP PRACTICE,29572472,"28,000.00 "
Department of Health,NHS Sheffield CCG,31/10/2019,C&M-GMS Cost of Drugs -Prescribing,LOCAL ENHANCED SERVICES,MATHEWS PRACTICE,29542131,156.77 
Department of Health,NHS Sheffield CCG,31/10/2019,C&M-GMS DES Minor Surgery,PRC DELEGATED CO-COMMISSIONING,MATHEWS PRACTICE,29542131,"2,035.00 "
Department of Health,NHS Sheffield CCG,31/10/2019,C&M-GMS Global Sum,PRC DELEGATED CO-COMMISSIONING,MATHEWS PRACTICE,29542131,"59,004.18 "
Department of Health,NHS Sheffield CCG,31/10/2019,C&M-GMS MPIG Correction Factor,PRC DELEGATED CO-COMMISSIONING,MATHEWS PRACTICE,29542131,299.48 
Department of Health,NHS Sheffield CCG,31/10/2019,C&M-GMS PCN DES Participation,PRC DELEGATED CO-COMMISSIONING,MATHEWS PRACTICE,29542131,"1,281.64 "
Department of Health,NHS Sheffield CCG,31/10/2019,C&M-GMS Prem Notional Rent,PRC DELEGATED CO-COMMISSIONING,MATHEWS PRACTICE,29542131,"8,660.42 "
Department of Health,NHS Sheffield CCG,31/10/2019,C&M-GMS Prem Rates,PRC DELEGATED CO-COMMISSIONING,MATHEWS PRACTICE,29542131,"2,148.00 "
Department of Health,NHS Sheffield CCG,31/10/2019,C&M-GMS Prof Fees Prescribing,PRC DELEGATED CO-COMMISSIONING,MATHEWS PRACTICE,29542131,108.23 
Department of Health,NHS Sheffield CCG,31/10/2019,C&M-GMS QOF Aspiration,PRC DELEGATED CO-COMMISSIONING,MATHEWS PRACTICE,29542131,"7,156.84 "
Department of Health,NHS Sheffield CCG,31/10/2019,C&M-PMS LES Presc Incentive Sch,LOCAL ENHANCED SERVICES,MATHEWS PRACTICE,29572439,"25,281.00 "
Department of Health,NHS Sheffield CCG,31/10/2019,C&M-PMS Contract Value,PRC DELEGATED CO-COMMISSIONING,MEADOWHEAD GROUP PRACTICE,29299264,"74,210.97 "
Department of Health,NHS Sheffield CCG,31/10/2019,C&M-PMS Out of Hours Opt Outs,PRC DELEGATED CO-COMMISSIONING,MEADOWHEAD GROUP PRACTICE,29299264,20.35 
Department of Health,NHS Sheffield CCG,31/10/2019,C&M-PMS PCN DES Participation,PRC DELEGATED CO-COMMISSIONING,MEADOWHEAD GROUP PRACTICE,29299264,"1,403.48 "
Department of Health,NHS Sheffield CCG,31/10/2019,C&M-PMS Prem Cost Rent,PRC DELEGATED CO-COMMISSIONING,MEADOWHEAD GROUP PRACTICE,29299264,"3,647.42 "
Department of Health,NHS Sheffield CCG,31/10/2019,C&M-PMS Prem Notional Rent,PRC DELEGATED CO-COMMISSIONING,MEADOWHEAD GROUP PRACTICE,29299264,"3,358.33 "
Department of Health,NHS Sheffield CCG,31/10/2019,C&M-PMS Prem Rates,PRC DELEGATED CO-COMMISSIONING,MEADOWHEAD GROUP PRACTICE,29299264,"1,870.00 "
Department of Health,NHS Sheffield CCG,31/10/2019,C&M-PMS QOF Aspiration,PRC DELEGATED CO-COMMISSIONING,MEADOWHEAD GROUP PRACTICE,29299264,"9,076.52 "
Department of Health,NHS Sheffield CCG,31/10/2019,C&M-GMS Cost of Drugs -Prescribing,LOCAL ENHANCED SERVICES,MEDICAL CENTRE CRYSTAL PEAKS,29542128,895.03 
Department of Health,NHS Sheffield CCG,31/10/2019,C&M-GMS DES Minor Surgery,PRC DELEGATED CO-COMMISSIONING,MEDICAL CENTRE CRYSTAL PEAKS,29542128,"3,965.00 "
Department of Health,NHS Sheffield CCG,31/10/2019,C&M-GMS Global Sum,PRC DELEGATED CO-COMMISSIONING,MEDICAL CENTRE CRYSTAL PEAKS,29542128,"47,224.00 "
Department of Health,NHS Sheffield CCG,31/10/2019,C&M-GMS MPIG Correction Factor,PRC DELEGATED CO-COMMISSIONING,MEDICAL CENTRE CRYSTAL PEAKS,29542128,565.67 
Department of Health,NHS Sheffield CCG,31/10/2019,C&M-GMS PCN DES Participation,PRC DELEGATED CO-COMMISSIONING,MEDICAL CENTRE CRYSTAL PEAKS,29542128,950.00 
Department of Health,NHS Sheffield CCG,31/10/2019,C&M-GMS PCO Other,PRC DELEGATED CO-COMMISSIONING,MEDICAL CENTRE CRYSTAL PEAKS,29542128,426.60 
Department of Health,NHS Sheffield CCG,31/10/2019,C&M-GMS Prem Actual Rent,PRC DELEGATED CO-COMMISSIONING,MEDICAL CENTRE CRYSTAL PEAKS,29542128,"17,610.00 "
Department of Health,NHS Sheffield CCG,31/10/2019,C&M-GMS Prem Notional Rent,PRC DELEGATED CO-COMMISSIONING,MEDICAL CENTRE CRYSTAL PEAKS,29542128,270.00 
Department of Health,NHS Sheffield CCG,31/10/2019,C&M-GMS Prem Rates,PRC DELEGATED CO-COMMISSIONING,MEDICAL CENTRE CRYSTAL PEAKS,29542128,"1,056.00 "
Department of Health,NHS Sheffield CCG,31/10/2019,C&M-GMS Prof Fees Prescribing,PRC DELEGATED CO-COMMISSIONING,MEDICAL CENTRE CRYSTAL PEAKS,29542128,283.80 
Department of Health,NHS Sheffield CCG,31/10/2019,C&M-GMS QOF Aspiration,PRC DELEGATED CO-COMMISSIONING,MEDICAL CENTRE CRYSTAL PEAKS,29542128,"6,211.79 "
Department of Health,NHS Sheffield CCG,31/10/2019,C&M-GMS DES Learn Dsblty Hlth Chk,PRC DELEGATED CO-COMMISSIONING,MEDICAL CENTRE DR OKORIE,29557022,420.00 
Department of Health,NHS Sheffield CCG,31/10/2019,C&M-GMS DES Minor Surgery,PRC DELEGATED CO-COMMISSIONING,MEDICAL CENTRE DR OKORIE,29557022,425.00 
Department of Health,NHS Sheffield CCG,31/10/2019,C&M-GMS Global Sum,PRC DELEGATED CO-COMMISSIONING,MEDICAL CENTRE DR OKORIE,29557022,"8,920.16 "
Department of Health,NHS Sheffield CCG,31/10/2019,C&M-GMS MPIG Correction Factor,PRC DELEGATED CO-COMMISSIONING,MEDICAL CENTRE DR OKORIE,29557022,523.10 
Department of Health,NHS Sheffield CCG,31/10/2019,C&M-GMS PCN DES Participation,PRC DELEGATED CO-COMMISSIONING,MEDICAL CENTRE DR OKORIE,29557022,176.88 
Department of Health,NHS Sheffield CCG,31/10/2019,C&M-GMS PCO Locum Sickness,PRC DELEGATED CO-COMMISSIONING,MEDICAL CENTRE DR OKORIE,29557022,"12,130.00 "
Department of Health,NHS Sheffield CCG,31/10/2019,C&M-GMS PCO Other,PRC DELEGATED CO-COMMISSIONING,MEDICAL CENTRE DR OKORIE,29557022,118.80 
Department of Health,NHS Sheffield CCG,31/10/2019,C&M-GMS Prem Notional Rent,PRC DELEGATED CO-COMMISSIONING,MEDICAL CENTRE DR OKORIE,29557022,"3,270.83 "
Department of Health,NHS Sheffield CCG,31/10/2019,C&M-GMS Prem Rates,PRC DELEGATED CO-COMMISSIONING,MEDICAL CENTRE DR OKORIE,29557022,743.00 
Department of Health,NHS Sheffield CCG,31/10/2019,C&M-GMS Prem Water Rates,PRC DELEGATED CO-COMMISSIONING,MEDICAL CENTRE DR OKORIE,29557022,56.93 
Department of Health,NHS Sheffield CCG,31/10/2019,C&M-GMS QOF Aspiration,PRC DELEGATED CO-COMMISSIONING,MEDICAL CENTRE DR OKORIE,29557022,563.90 
Department of Health,NHS Sheffield CCG,31/10/2019,C&M-GMS Cost of Drugs -Prescribing,LOCAL ENHANCED SERVICES,MILL ROAD SURGERY SHEFFIELD,29542134,"2,028.42 "
Department of Health,NHS Sheffield CCG,31/10/2019,C&M-GMS DES Minor Surgery,PRC DELEGATED CO-COMMISSIONING,MILL ROAD SURGERY SHEFFIELD,29542134,"1,175.00 "
Department of Health,NHS Sheffield CCG,31/10/2019,C&M-GMS Global Sum,PRC DELEGATED CO-COMMISSIONING,MILL ROAD SURGERY SHEFFIELD,29542134,"41,087.07 "
Department of Health,NHS Sheffield CCG,31/10/2019,C&M-GMS MPIG Correction Factor,PRC DELEGATED CO-COMMISSIONING,MILL ROAD SURGERY SHEFFIELD,29542134,61.02 
Department of Health,NHS Sheffield CCG,31/10/2019,C&M-GMS PCN DES Participation,PRC DELEGATED CO-COMMISSIONING,MILL ROAD SURGERY SHEFFIELD,29542134,842.44 
Department of Health,NHS Sheffield CCG,31/10/2019,C&M-GMS PCO Other,PRC DELEGATED CO-COMMISSIONING,MILL ROAD SURGERY SHEFFIELD,29542134,352.70 
Department of Health,NHS Sheffield CCG,31/10/2019,C&M-GMS Prem Notional Rent,PRC DELEGATED CO-COMMISSIONING,MILL ROAD SURGERY SHEFFIELD,29542134,"4,593.33 "
Department of Health,NHS Sheffield CCG,31/10/2019,C&M-GMS Prem Rates,PRC DELEGATED CO-COMMISSIONING,MILL ROAD SURGERY SHEFFIELD,29542134,"1,056.00 "
Department of Health,NHS Sheffield CCG,31/10/2019,C&M-GMS Prof Fees Prescribing,PRC DELEGATED CO-COMMISSIONING,MILL ROAD SURGERY SHEFFIELD,29542134,163.55 
Department of Health,NHS Sheffield CCG,31/10/2019,C&M-GMS QOF Aspiration,PRC DELEGATED CO-COMMISSIONING,MILL ROAD SURGERY SHEFFIELD,29542134,"5,088.50 "
Department of Health,NHS Sheffield CCG,31/10/2019,Clinical&Medical-Independent Sector,Mental Health Services - S117 Mental Health,MOORVILLE RESIDENTIAL,29310901,"15,062.28 "
Department of Health,NHS Sheffield CCG,31/10/2019,Cont Care-Learning Disab(<65),CHC ADULT FULLY FUNDED,MOORVILLE RESIDENTIAL,29310901,"9,149.03 "
Department of Health,NHS Sheffield CCG,31/10/2019,Cont Care-Learning Disab(<65),CHC ADULT JOINT FUNDED,MOORVILLE RESIDENTIAL,29310901,"4,024.73 "
Department of Health,NHS Sheffield CCG,31/10/2019,Cont Care-Mental Health (<65),CHC ADULT JOINT FUNDED,MOORVILLE RESIDENTIAL,29310901,491.66 
Department of Health,NHS Sheffield CCG,31/10/2019,C&M-PMS Contract Value,PRC DELEGATED CO-COMMISSIONING,MOSBOROUGH HEALTH CENTRE,29299268,"49,452.21 "
Department of Health,NHS Sheffield CCG,31/10/2019,C&M-PMS PCN DES Participation,PRC DELEGATED CO-COMMISSIONING,MOSBOROUGH HEALTH CENTRE,29299268,927.38 
Department of Health,NHS Sheffield CCG,31/10/2019,C&M-PMS PCO Other,PRC DELEGATED CO-COMMISSIONING,MOSBOROUGH HEALTH CENTRE,29299268,432.20 
Department of Health,NHS Sheffield CCG,31/10/2019,C&M-PMS Prem Notional Rent,PRC DELEGATED CO-COMMISSIONING,MOSBOROUGH HEALTH CENTRE,29299268,"4,091.67 "
Department of Health,NHS Sheffield CCG,31/10/2019,C&M-PMS Prem Rates,PRC DELEGATED CO-COMMISSIONING,MOSBOROUGH HEALTH CENTRE,29299268,"1,105.00 "
Department of Health,NHS Sheffield CCG,31/10/2019,C&M-PMS Prem Water Rates,PRC DELEGATED CO-COMMISSIONING,MOSBOROUGH HEALTH CENTRE,29299268,182.51 
Department of Health,NHS Sheffield CCG,31/10/2019,C&M-PMS QOF Aspiration,PRC DELEGATED CO-COMMISSIONING,MOSBOROUGH HEALTH CENTRE,29299268,"5,736.56 "
Department of Health,NHS Sheffield CCG,31/10/2019,C&M-PMS Contract Value,PRC DELEGATED CO-COMMISSIONING,NETHERGREEN SURGERY,29299270,"63,791.23 "
Department of Health,NHS Sheffield CCG,31/10/2019,C&M-PMS Out of Hours Opt Outs,PRC DELEGATED CO-COMMISSIONING,NETHERGREEN SURGERY,29299270,2.32 
Department of Health,NHS Sheffield CCG,31/10/2019,C&M-PMS PCN DES Participation,PRC DELEGATED CO-COMMISSIONING,NETHERGREEN SURGERY,29299270,"1,208.31 "
Department of Health,NHS Sheffield CCG,31/10/2019,C&M-PMS Prem Cost Rent,PRC DELEGATED CO-COMMISSIONING,NETHERGREEN SURGERY,29299270,"5,057.33 "
Department of Health,NHS Sheffield CCG,31/10/2019,C&M-PMS Prem Rates,PRC DELEGATED CO-COMMISSIONING,NETHERGREEN SURGERY,29299270,"1,264.00 "
Department of Health,NHS Sheffield CCG,31/10/2019,C&M-PMS QOF Aspiration,PRC DELEGATED CO-COMMISSIONING,NETHERGREEN SURGERY,29299270,"6,406.79 "
Department of Health,NHS Sheffield CCG,31/10/2019,Other Gen Supplies & Srv,CLINICAL LEADS,NHS DONCASTER CCG,29484257,"61,104.00 "
Department of Health,NHS Sheffield CCG,31/10/2019,C&M-GMS Prem Other,PRC DELEGATED CO-COMMISSIONING,NHS ENGLAND,29528464,"4,839.48 "
Department of Health,NHS Sheffield CCG,31/10/2019,Contract- Refuse & Clinical Waste,PRC DELEGATED CO-COMMISSIONING,NHS ENGLAND,29528464,"69,312.76 "
Department of Health,NHS Sheffield CCG,31/10/2019,Other Gen Supplies & Srv,PRC DELEGATED CO-COMMISSIONING,NHS ENGLAND,29528464,"10,786.30 "
Department of Health,NHS Sheffield CCG,31/10/2019,Seconded-Basic Sal-Staff fm oth org,CEO/ BOARD OFFICE,NHS HULL CCG,29451582,"27,516.06 "
Department of Health,NHS Sheffield CCG,31/10/2019,Charges from CSU,BUSINESS INFORMATICS,NHS NORTH OF ENGLAND CSU,29190583,"27,376.00 "
Department of Health,NHS Sheffield CCG,31/10/2019,Charges from CSU,BUSINESS INFORMATICS,NHS NORTH OF ENGLAND CSU,29497287,"27,376.00 "
Department of Health,NHS Sheffield CCG,31/10/2019,Voids and Subsidies,RECHARGES NHS PROPERTY SERVICES LTD,NHS PROPERTY SERVICES LTD,29265814,"25,268.65 "
Department of Health,NHS Sheffield CCG,31/10/2019,Voids and Subsidies,RECHARGES NHS PROPERTY SERVICES LTD,NHS PROPERTY SERVICES LTD,29265838,"39,324.00 "
Department of Health,NHS Sheffield CCG,31/10/2019,Rent,ESTATES AND FACILITIES,NHS PROPERTY SERVICES LTD,29369554,"75,873.88 "
Department of Health,NHS Sheffield CCG,31/10/2019,Rent,RECHARGES NHS PROPERTY SERVICES LTD,NHS PROPERTY SERVICES LTD,29369554,"25,637.17 "
Department of Health,NHS Sheffield CCG,31/10/2019,Service Charge,ESTATES AND FACILITIES,NHS PROPERTY SERVICES LTD,29369554,"27,954.21 "
Department of Health,NHS Sheffield CCG,31/10/2019,Service Charge,RECHARGES NHS PROPERTY SERVICES LTD,NHS PROPERTY SERVICES LTD,29369554,"9,445.51 "
Department of Health,NHS Sheffield CCG,31/10/2019,Service Charge,ESTATES AND FACILITIES,NHS PROPERTY SERVICES LTD,29369580,"43,495.84 "
Department of Health,NHS Sheffield CCG,31/10/2019,Service Charge,RECHARGES NHS PROPERTY SERVICES LTD,NHS PROPERTY SERVICES LTD,29369580,"14,696.89 "
Department of Health,NHS Sheffield CCG,31/10/2019,C&M-GMS Cost of Drugs -Prescribing,LOCAL ENHANCED SERVICES,NORFOLK PARK HEALTH CENTRE,29542139,"1,132.35 "
Department of Health,NHS Sheffield CCG,31/10/2019,C&M-GMS DES Minor Surgery,PRC DELEGATED CO-COMMISSIONING,NORFOLK PARK HEALTH CENTRE,29542139,420.00 
Department of Health,NHS Sheffield CCG,31/10/2019,C&M-GMS Global Sum,PRC DELEGATED CO-COMMISSIONING,NORFOLK PARK HEALTH CENTRE,29542139,"39,461.93 "
Department of Health,NHS Sheffield CCG,31/10/2019,C&M-GMS MPIG Correction Factor,PRC DELEGATED CO-COMMISSIONING,NORFOLK PARK HEALTH CENTRE,29542139,462.30 
Department of Health,NHS Sheffield CCG,31/10/2019,C&M-GMS PCN DES Participation,PRC DELEGATED CO-COMMISSIONING,NORFOLK PARK HEALTH CENTRE,29542139,763.41 
Department of Health,NHS Sheffield CCG,31/10/2019,C&M-GMS Prem Healthcentre Rent,PRC DELEGATED CO-COMMISSIONING,NORFOLK PARK HEALTH CENTRE,29542139,"24,820.01 "
Department of Health,NHS Sheffield CCG,31/10/2019,C&M-GMS Prof Fees Prescribing,PRC DELEGATED CO-COMMISSIONING,NORFOLK PARK HEALTH CENTRE,29542139,151.52 
Department of Health,NHS Sheffield CCG,31/10/2019,C&M-GMS QOF Aspiration,PRC DELEGATED CO-COMMISSIONING,NORFOLK PARK HEALTH CENTRE,29542139,"3,941.29 "
Department of Health,NHS Sheffield CCG,31/10/2019,C&M-GMS Cost of Drugs -Prescribing,LOCAL ENHANCED SERVICES,NORWOOD MEDICAL CENTRE SHEFFIELD,29542142,137.96 
Department of Health,NHS Sheffield CCG,31/10/2019,C&M-GMS DES Minor Surgery,PRC DELEGATED CO-COMMISSIONING,NORWOOD MEDICAL CENTRE SHEFFIELD,29542142,"2,040.00 "
Department of Health,NHS Sheffield CCG,31/10/2019,C&M-GMS Global Sum,PRC DELEGATED CO-COMMISSIONING,NORWOOD MEDICAL CENTRE SHEFFIELD,29542142,"65,606.22 "
Department of Health,NHS Sheffield CCG,31/10/2019,C&M-GMS PCN DES Participation,PRC DELEGATED CO-COMMISSIONING,NORWOOD MEDICAL CENTRE SHEFFIELD,29542142,"1,337.61 "
Department of Health,NHS Sheffield CCG,31/10/2019,C&M-GMS PCO Locum Sickness,PRC DELEGATED CO-COMMISSIONING,NORWOOD MEDICAL CENTRE SHEFFIELD,29542142,"8,075.83 "
Department of Health,NHS Sheffield CCG,31/10/2019,C&M-GMS PCO Other,PRC DELEGATED CO-COMMISSIONING,NORWOOD MEDICAL CENTRE SHEFFIELD,29542142,510.00 
Department of Health,NHS Sheffield CCG,31/10/2019,C&M-GMS Prem Notional Rent,PRC DELEGATED CO-COMMISSIONING,NORWOOD MEDICAL CENTRE SHEFFIELD,29542142,"5,187.50 "
Department of Health,NHS Sheffield CCG,31/10/2019,C&M-GMS Prem Rates,PRC DELEGATED CO-COMMISSIONING,NORWOOD MEDICAL CENTRE SHEFFIELD,29542142,"1,279.00 "
Department of Health,NHS Sheffield CCG,31/10/2019,C&M-GMS Prof Fees Prescribing,PRC DELEGATED CO-COMMISSIONING,NORWOOD MEDICAL CENTRE SHEFFIELD,29542142,67.35 
Department of Health,NHS Sheffield CCG,31/10/2019,C&M-GMS QOF Aspiration,PRC DELEGATED CO-COMMISSIONING,NORWOOD MEDICAL CENTRE SHEFFIELD,29542142,"8,171.17 "
Department of Health,NHS Sheffield CCG,31/10/2019,C&M-PMS LES Presc Incentive Sch,LOCAL ENHANCED SERVICES,NORWOOD MEDICAL CENTRE SHEFFIELD,29549300,"26,500.00 "
Department of Health,NHS Sheffield CCG,31/10/2019,Clinical&Medical-Independent Sector,ACUTE COMMISSIONING,ONEHEALTH GROUP,29327783,"71,286.25 "
Department of Health,NHS Sheffield CCG,31/10/2019,C&M-GMS Cost of Drugs -Dispensing,LOCAL ENHANCED SERVICES,OUGHTIBRIDGE SURGERY,29542146,"33,033.57 "
Department of Health,NHS Sheffield CCG,31/10/2019,C&M-GMS DES Minor Surgery,PRC DELEGATED CO-COMMISSIONING,OUGHTIBRIDGE SURGERY,29542146,480.00 
Department of Health,NHS Sheffield CCG,31/10/2019,C&M-GMS Global Sum,PRC DELEGATED CO-COMMISSIONING,OUGHTIBRIDGE SURGERY,29542146,"43,567.76 "
Department of Health,NHS Sheffield CCG,31/10/2019,C&M-GMS PCN DES Participation,PRC DELEGATED CO-COMMISSIONING,OUGHTIBRIDGE SURGERY,29542146,889.02 
Department of Health,NHS Sheffield CCG,31/10/2019,C&M-GMS Prem Notional Rent,PRC DELEGATED CO-COMMISSIONING,OUGHTIBRIDGE SURGERY,29542146,"3,957.33 "
Department of Health,NHS Sheffield CCG,31/10/2019,C&M-GMS Prem Rates,PRC DELEGATED CO-COMMISSIONING,OUGHTIBRIDGE SURGERY,29542146,895.00 
Department of Health,NHS Sheffield CCG,31/10/2019,C&M-GMS Prem Water Rates,PRC DELEGATED CO-COMMISSIONING,OUGHTIBRIDGE SURGERY,29542146,157.62 
Department of Health,NHS Sheffield CCG,31/10/2019,C&M-GMS Prof Fees Dispensing,PRC DELEGATED CO-COMMISSIONING,OUGHTIBRIDGE SURGERY,29542146,"4,749.81 "
Department of Health,NHS Sheffield CCG,31/10/2019,C&M-GMS PrscrptnChrgsColl&RmttdbyGP,LOCAL ENHANCED SERVICES,OUGHTIBRIDGE SURGERY,29542146,468.00 
Department of Health,NHS Sheffield CCG,31/10/2019,C&M-GMS QOF Aspiration,PRC DELEGATED CO-COMMISSIONING,OUGHTIBRIDGE SURGERY,29542146,"4,261.60 "
Department of Health,NHS Sheffield CCG,31/10/2019,C&M-PMS Contract Value,PRC DELEGATED CO-COMMISSIONING,OWLTHORPE MEDICAL CENTRE,29299272,"33,242.63 "
Department of Health,NHS Sheffield CCG,31/10/2019,C&M-PMS Out of Hours Opt Outs,PRC DELEGATED CO-COMMISSIONING,OWLTHORPE MEDICAL CENTRE,29299272,11.91 
Department of Health,NHS Sheffield CCG,31/10/2019,C&M-PMS PCN DES Participation,PRC DELEGATED CO-COMMISSIONING,OWLTHORPE MEDICAL CENTRE,29299272,639.06 
Department of Health,NHS Sheffield CCG,31/10/2019,C&M-PMS PCO Locum Adop/Pat/Mat,PRC DELEGATED CO-COMMISSIONING,OWLTHORPE MEDICAL CENTRE,29299272,"6,623.58 "
Department of Health,NHS Sheffield CCG,31/10/2019,C&M-PMS Prem Actual Rent,PRC DELEGATED CO-COMMISSIONING,OWLTHORPE MEDICAL CENTRE,29299272,"7,539.58 "
Department of Health,NHS Sheffield CCG,31/10/2019,C&M-PMS Prem Rates,PRC DELEGATED CO-COMMISSIONING,OWLTHORPE MEDICAL CENTRE,29299272,"1,316.00 "
Department of Health,NHS Sheffield CCG,31/10/2019,C&M-PMS QOF Aspiration,PRC DELEGATED CO-COMMISSIONING,OWLTHORPE MEDICAL CENTRE,29299272,"3,873.48 "
Department of Health,NHS Sheffield CCG,31/10/2019,C&M-PMS Contract Value,PRC DELEGATED CO-COMMISSIONING,PAGE HALL MEDICAL CENTRE,29299274,"57,002.30 "
Department of Health,NHS Sheffield CCG,31/10/2019,C&M-PMS Out of Hours Opt Outs,PRC DELEGATED CO-COMMISSIONING,PAGE HALL MEDICAL CENTRE,29299274,20.84 
Department of Health,NHS Sheffield CCG,31/10/2019,C&M-PMS PCN DES Participation,PRC DELEGATED CO-COMMISSIONING,PAGE HALL MEDICAL CENTRE,29299274,"1,083.01 "
Department of Health,NHS Sheffield CCG,31/10/2019,C&M-PMS PCO Other,PRC DELEGATED CO-COMMISSIONING,PAGE HALL MEDICAL CENTRE,29299274,495.10 
Department of Health,NHS Sheffield CCG,31/10/2019,C&M-PMS Prem Notional Rent,PRC DELEGATED CO-COMMISSIONING,PAGE HALL MEDICAL CENTRE,29299274,"4,833.33 "
Department of Health,NHS Sheffield CCG,31/10/2019,C&M-PMS Prem Rates,PRC DELEGATED CO-COMMISSIONING,PAGE HALL MEDICAL CENTRE,29299274,"1,077.00 "
Department of Health,NHS Sheffield CCG,31/10/2019,C&M-PMS QOF Aspiration,PRC DELEGATED CO-COMMISSIONING,PAGE HALL MEDICAL CENTRE,29299274,"4,558.05 "
Department of Health,NHS Sheffield CCG,31/10/2019,C&M-PMS Contract Value,PRC DELEGATED CO-COMMISSIONING,PORTER BROOK MEDICAL CENTRE,29299275,"(6,328.21)"
Department of Health,NHS Sheffield CCG,31/10/2019,C&M-PMS GP Statutory Levy,PRC DELEGATED CO-COMMISSIONING,PORTER BROOK MEDICAL CENTRE,29299275,"(1,047.87)"
Department of Health,NHS Sheffield CCG,31/10/2019,C&M-PMS Out of Hours Opt Outs,PRC DELEGATED CO-COMMISSIONING,PORTER BROOK MEDICAL CENTRE,29299275,"(7,778.42)"
Department of Health,NHS Sheffield CCG,31/10/2019,C&M-PMS Contract Value,PRC DELEGATED CO-COMMISSIONING,PORTER BROOK MEDICAL CENTRE,29299276,"166,801.76 "
Department of Health,NHS Sheffield CCG,31/10/2019,C&M-PMS Out of Hours Opt Outs,PRC DELEGATED CO-COMMISSIONING,PORTER BROOK MEDICAL CENTRE,29299276,295.37 
Department of Health,NHS Sheffield CCG,31/10/2019,C&M-PMS PCN DES Participation,PRC DELEGATED CO-COMMISSIONING,PORTER BROOK MEDICAL CENTRE,29299276,"3,163.47 "
Department of Health,NHS Sheffield CCG,31/10/2019,C&M-PMS PCO Other,PRC DELEGATED CO-COMMISSIONING,PORTER BROOK MEDICAL CENTRE,29299276,"1,730.30 "
Department of Health,NHS Sheffield CCG,31/10/2019,C&M-PMS Prem Actual Rent,PRC DELEGATED CO-COMMISSIONING,PORTER BROOK MEDICAL CENTRE,29299276,"1,333.33 "
Department of Health,NHS Sheffield CCG,31/10/2019,C&M-PMS Prem Notional Rent,PRC DELEGATED CO-COMMISSIONING,PORTER BROOK MEDICAL CENTRE,29299276,"9,666.67 "
Department of Health,NHS Sheffield CCG,31/10/2019,C&M-PMS Prem Rates,PRC DELEGATED CO-COMMISSIONING,PORTER BROOK MEDICAL CENTRE,29299276,"2,271.00 "
Department of Health,NHS Sheffield CCG,31/10/2019,C&M-PMS QOF Aspiration,PRC DELEGATED CO-COMMISSIONING,PORTER BROOK MEDICAL CENTRE,29299276,"8,838.31 "
Department of Health,NHS Sheffield CCG,31/10/2019,C&M-GMS LES Equitable Funding,LOCAL ENHANCED SERVICES,PORTER BROOK MEDICAL CENTRE,29445802,"26,776.00 "
Department of Health,NHS Sheffield CCG,31/10/2019,C&M-GMS LES Basket of Procedures,LOCAL ENHANCED SERVICES,PRIMARY CARE SHEFFIELD LTD,29310660,"52,308.33 "
Department of Health,NHS Sheffield CCG,31/10/2019,C&M-APMS DES Extended Hours Access,GP FORWARD VIEW,PRIMARY CARE SHEFFIELD LTD,29310765,"295,941.67 "
Department of Health,NHS Sheffield CCG,31/10/2019,C&M-PMS LES Presc Incentive Sch,LOCAL ENHANCED SERVICES,PRIMARY CARE SHEFFIELD LTD,29549494,"50,960.00 "
Department of Health,NHS Sheffield CCG,31/10/2019,C&M-OES Childrens Schemes,LOCAL ENHANCED SERVICES,PRIMARY EYECARE SERVICES LTD,29286651,725.00 
Department of Health,NHS Sheffield CCG,31/10/2019,C&M-OES Glaucoma,LOCAL ENHANCED SERVICES,PRIMARY EYECARE SERVICES LTD,29286651,"1,045.00 "
Department of Health,NHS Sheffield CCG,31/10/2019,C&M-OES Intra-ocular Ocular Hypertn,LOCAL ENHANCED SERVICES,PRIMARY EYECARE SERVICES LTD,29286651,460.00 
Department of Health,NHS Sheffield CCG,31/10/2019,C&M-OES PEARS,LOCAL ENHANCED SERVICES,PRIMARY EYECARE SERVICES LTD,29286651,"24,239.50 "
Department of Health,NHS Sheffield CCG,31/10/2019,C&M-OES Glaucoma,LOCAL ENHANCED SERVICES,PRIMARY EYECARE SERVICES LTD,29407613,975.00 
Department of Health,NHS Sheffield CCG,31/10/2019,C&M-OES Intra-ocular Ocular Hypertn,LOCAL ENHANCED SERVICES,PRIMARY EYECARE SERVICES LTD,29407613,460.00 
Department of Health,NHS Sheffield CCG,31/10/2019,C&M-OES PEARS,LOCAL ENHANCED SERVICES,PRIMARY EYECARE SERVICES LTD,29407613,"28,889.50 "
Department of Health,NHS Sheffield CCG,31/10/2019,Cont Care-Physical Disab (<65),CHC ADULT FULLY FUNDED,PRIORY GROUP LTD,29310645,"26,921.65 "
Department of Health,NHS Sheffield CCG,31/10/2019,C&M-PMS Contract Value,PRC DELEGATED CO-COMMISSIONING,RICHMOND MEDICAL CENTRE,29299278,"67,073.18 "
Department of Health,NHS Sheffield CCG,31/10/2019,C&M-PMS PCN DES Participation,PRC DELEGATED CO-COMMISSIONING,RICHMOND MEDICAL CENTRE,29299278,"1,271.70 "
Department of Health,NHS Sheffield CCG,31/10/2019,C&M-PMS PCO Other,PRC DELEGATED CO-COMMISSIONING,RICHMOND MEDICAL CENTRE,29299278,561.50 
Department of Health,NHS Sheffield CCG,31/10/2019,C&M-PMS Prem Notional Rent,PRC DELEGATED CO-COMMISSIONING,RICHMOND MEDICAL CENTRE,29299278,"4,731.00 "
Department of Health,NHS Sheffield CCG,31/10/2019,C&M-PMS Prem Rates,PRC DELEGATED CO-COMMISSIONING,RICHMOND MEDICAL CENTRE,29299278,"1,259.00 "
Department of Health,NHS Sheffield CCG,31/10/2019,C&M-PMS QOF Aspiration,PRC DELEGATED CO-COMMISSIONING,RICHMOND MEDICAL CENTRE,29299278,"8,208.20 "
Department of Health,NHS Sheffield CCG,31/10/2019,Cont Care-Physical Disab (<65),CHC ADULT FULLY FUNDED,ROSEBERRY CARE CENTRES,29311068,"38,667.14 "
Department of Health,NHS Sheffield CCG,31/10/2019,Cont Care-Funded Nursing Care Allow,FUNDED NURSING CARE,ROSEBERRY CARE CENTRES,29345389,"30,020.52 "
Department of Health,NHS Sheffield CCG,31/10/2019,Cont Care-Physical Disab (<65),CHC ADULT FULLY FUNDED,ROSEBERRY CARE CENTRES,29345499,"42,806.40 "
Department of Health,NHS Sheffield CCG,31/10/2019,Hcare Srv Rec Fdtn Trust-Contract Baseline,MENTAL HEALTH CONTRACTS,ROTHERHAM DONCASTER AND SOUTH HUMBER NHS FOUNDATION TRUST,29265696,"25,487.95 "
Department of Health,NHS Sheffield CCG,31/10/2019,Hcare Srv Rec Fdtn Trust-Contract Baseline,MENTAL HEALTH CONTRACTS,ROTHERHAM DONCASTER AND SOUTH HUMBER NHS FOUNDATION TRUST,29369582,"25,487.95 "
Department of Health,NHS Sheffield CCG,31/10/2019,Hcare Srv Rec Fdtn Trust-Contract Baseline,ACUTE COMMISSIONING,ROTHERHAM NHS FOUNDATION TRUST,29239049,"466,729.00 "
Department of Health,NHS Sheffield CCG,31/10/2019,Seconded-Basic Sal-Staff fm oth org,BEREAVEMENT SERVICE,ROTHERHAM NHS FOUNDATION TRUST,29310113,"33,939.60 "
Department of Health,NHS Sheffield CCG,31/10/2019,C&M-PMS Contract Value,PRC DELEGATED CO-COMMISSIONING,RUSTLINGS ROAD MEDICAL CENTRE,29299282,"28,037.73 "
Department of Health,NHS Sheffield CCG,31/10/2019,C&M-PMS PCN DES Participation,PRC DELEGATED CO-COMMISSIONING,RUSTLINGS ROAD MEDICAL CENTRE,29299282,527.62 
Department of Health,NHS Sheffield CCG,31/10/2019,C&M-PMS PCO Other,PRC DELEGATED CO-COMMISSIONING,RUSTLINGS ROAD MEDICAL CENTRE,29299282,313.80 
Department of Health,NHS Sheffield CCG,31/10/2019,C&M-PMS Prem Notional Rent,PRC DELEGATED CO-COMMISSIONING,RUSTLINGS ROAD MEDICAL CENTRE,29299282,"1,312.50 "
Department of Health,NHS Sheffield CCG,31/10/2019,C&M-PMS Prem Water Rates,PRC DELEGATED CO-COMMISSIONING,RUSTLINGS ROAD MEDICAL CENTRE,29299282,65.99 
Department of Health,NHS Sheffield CCG,31/10/2019,C&M-PMS QOF Aspiration,PRC DELEGATED CO-COMMISSIONING,RUSTLINGS ROAD MEDICAL CENTRE,29299282,"2,653.37 "
Department of Health,NHS Sheffield CCG,31/10/2019,C&M-GMS Cost of Drugs -Prescribing,LOCAL ENHANCED SERVICES,SHARROW LANE MEDICAL CENTRE,29542150,321.10 
Department of Health,NHS Sheffield CCG,31/10/2019,C&M-GMS DES Minor Surgery,PRC DELEGATED CO-COMMISSIONING,SHARROW LANE MEDICAL CENTRE,29542150,280.00 
Department of Health,NHS Sheffield CCG,31/10/2019,C&M-GMS Global Sum,PRC DELEGATED CO-COMMISSIONING,SHARROW LANE MEDICAL CENTRE,29542150,"23,795.26 "
Department of Health,NHS Sheffield CCG,31/10/2019,C&M-GMS MPIG Correction Factor,PRC DELEGATED CO-COMMISSIONING,SHARROW LANE MEDICAL CENTRE,29542150,980.16 
Department of Health,NHS Sheffield CCG,31/10/2019,C&M-GMS PCN DES Participation,PRC DELEGATED CO-COMMISSIONING,SHARROW LANE MEDICAL CENTRE,29542150,481.39 
Department of Health,NHS Sheffield CCG,31/10/2019,C&M-GMS PCO Other,PRC DELEGATED CO-COMMISSIONING,SHARROW LANE MEDICAL CENTRE,29542150,274.00 
Department of Health,NHS Sheffield CCG,31/10/2019,C&M-GMS Prem Notional Rent,PRC DELEGATED CO-COMMISSIONING,SHARROW LANE MEDICAL CENTRE,29542150,"2,741.67 "
Department of Health,NHS Sheffield CCG,31/10/2019,C&M-GMS Prem Rates,PRC DELEGATED CO-COMMISSIONING,SHARROW LANE MEDICAL CENTRE,29542150,581.00 
Department of Health,NHS Sheffield CCG,31/10/2019,C&M-GMS Prem Water Rates,PRC DELEGATED CO-COMMISSIONING,SHARROW LANE MEDICAL CENTRE,29542150,79.98 
Department of Health,NHS Sheffield CCG,31/10/2019,C&M-GMS Prof Fees Prescribing,PRC DELEGATED CO-COMMISSIONING,SHARROW LANE MEDICAL CENTRE,29542150,64.94 
Department of Health,NHS Sheffield CCG,31/10/2019,C&M-GMS QOF Aspiration,PRC DELEGATED CO-COMMISSIONING,SHARROW LANE MEDICAL CENTRE,29542150,"2,666.85 "
Department of Health,NHS Sheffield CCG,31/10/2019,Hcare Srv Rec Fdtn Trust-Contract Baseline,ACUTE CHILDRENS SERVICES,SHEFFIELD CHILDRENS NHS FOUNDATION TRUST,29286642,"(345,974.60)"
Department of Health,NHS Sheffield CCG,31/10/2019,Hcare Srv Rec Fdtn Trust-Contract Baseline,ACUTE CHILDRENS SERVICES,SHEFFIELD CHILDRENS NHS FOUNDATION TRUST,29392254,"3,387,974.00 "
Department of Health,NHS Sheffield CCG,31/10/2019,Clinical&Medical-Othe Public Sector,CHILD AND ADOLESCENT MENTAL HEALTH,SHEFFIELD CITY COUNCIL,29286689,"14,576.00 "
Department of Health,NHS Sheffield CCG,31/10/2019,Clinical&Medical-Voluntary Sector,CHILD AND ADOLESCENT MENTAL HEALTH,SHEFFIELD CITY COUNCIL,29286689,"161,000.00 "
Department of Health,NHS Sheffield CCG,31/10/2019,Clinical&Medical-Othe Public Sector,COMMUNITY SERVICES,SHEFFIELD CITY COUNCIL,29451871,"150,417.00 "
Department of Health,NHS Sheffield CCG,31/10/2019,Clinical&Medical-Othe Public Sector,MENTAL HEALTH SERVICES - COLLABORATIVE COMMISSIONING,SHEFFIELD CITY COUNCIL,29451871,"83,669.00 "
Department of Health,NHS Sheffield CCG,31/10/2019,Clinical&Medical-Othe Public Sector,REABLEMENT,SHEFFIELD CITY COUNCIL,29451871,"21,831.00 "
Department of Health,NHS Sheffield CCG,31/10/2019,Clinical&Medical-Othe Public Sector,SAFEGUARDING,SHEFFIELD CITY COUNCIL,29451871,"12,235.00 "
Department of Health,NHS Sheffield CCG,31/10/2019,Cont Care-Physical Disab (65+),CHC ADULT FULLY FUNDED,SHEFFIELD CITY COUNCIL,29451871,"14,169.42 "
Department of Health,NHS Sheffield CCG,31/10/2019,Soc Care-Joint H&C Teams/Working,INTERMEDIATE CARE,SHEFFIELD CITY COUNCIL,29451871,"151,448.00 "
Department of Health,NHS Sheffield CCG,31/10/2019,Soc Care-Other Soc Care,COMMISSIONING - NON ACUTE,SHEFFIELD CITY COUNCIL,29451871,"1,467,750.00 "
Department of Health,NHS Sheffield CCG,31/10/2019,Soc Care-Support Prim Care,COMMUNITY SERVICES,SHEFFIELD CITY COUNCIL,29451871,"59,500.00 "
Department of Health,NHS Sheffield CCG,31/10/2019,Cont Care- Prior Year Payments,ADULT JOINT FUNDED CONTINUING CARE,SHEFFIELD CITY COUNCIL,29528384,"235,170.90 "
Department of Health,NHS Sheffield CCG,31/10/2019,Cont Care- Children,CHC CHILDREN,SHEFFIELD CITY COUNCIL,29528527,"46,783.57 "
Department of Health,NHS Sheffield CCG,31/10/2019,Cont Care-Physical Disab (65+),CHC ADULT FULLY FUNDED,SHEFFIELD CITY COUNCIL,29528534,"1,015,585.17 "
Department of Health,NHS Sheffield CCG,31/10/2019,Cont Care- Prior Year Payments,CHC ADULT FULLY FUNDED,SHEFFIELD CITY COUNCIL,29528544,"114,512.89 "
Department of Health,NHS Sheffield CCG,31/10/2019,Cont Care-NHSFT-Adult 100% Funded,CHC ADULT FULLY FUNDED,SHEFFIELD HEALTH & SOCIAL CARE NHS FOUNDATION TRUST,29239013,"88,480.60 "
Department of Health,NHS Sheffield CCG,31/10/2019,Hcare Srv Rec Fdtn Trust-Contract Baseline,MENTAL HEALTH CONTRACTS,SHEFFIELD HEALTH & SOCIAL CARE NHS FOUNDATION TRUST,29407621,"6,833,545.75 "
Department of Health,NHS Sheffield CCG,31/10/2019,C&M-APMS Contract Value,PRC DELEGATED CO-COMMISSIONING,SHEFFIELD HEALTH & SOCIAL CARE NHS FOUNDATION TRUST,29451379,"165,151.00 "
Department of Health,NHS Sheffield CCG,31/10/2019,C&M-APMS Contract Value,PRC DELEGATED CO-COMMISSIONING,SHEFFIELD HEALTH & SOCIAL CARE NHS FOUNDATION TRUST,29451519,"(165,151.00)"
Department of Health,NHS Sheffield CCG,31/10/2019,Miscellaneous Expenditure (L9),BEREAVEMENT SERVICE,SHEFFIELD LOCAL PHARMACEUTICAL COMMITTEE,29286631,"96,500.00 "
Department of Health,NHS Sheffield CCG,31/10/2019,Other Gen Supplies & Srv,CLINICAL LEADS,SHEFFIELD TEACHING HOSPITALS NHS FOUNDATION TRUST,26446078,"78,032.00 "
Department of Health,NHS Sheffield CCG,31/10/2019,Hcare Srv Rec Fdtn Trust-Non Contract,ACUTE COMMISSIONING,SHEFFIELD TEACHING HOSPITALS NHS FOUNDATION TRUST,29286624,"(82,486.00)"
Department of Health,NHS Sheffield CCG,31/10/2019,Hcare Srv Rec Fdtn Trust-Non Contract,ACUTE COMMISSIONING,SHEFFIELD TEACHING HOSPITALS NHS FOUNDATION TRUST,29286629,"154,369.00 "
Department of Health,NHS Sheffield CCG,31/10/2019,Hcare Srv Rec Fdtn Trust-Non Contract,ACUTE COMMISSIONING,SHEFFIELD TEACHING HOSPITALS NHS FOUNDATION TRUST,29286666,"(86,962.00)"
Department of Health,NHS Sheffield CCG,31/10/2019,Clinical&Medical-Serv Recd-F Trsts,CLINICAL LEADS,SHEFFIELD TEACHING HOSPITALS NHS FOUNDATION TRUST,29457754,"101,265.00 "
Department of Health,NHS Sheffield CCG,31/10/2019,Hcare Srv Rec Fdtn Trust-Non Contract,LONG TERM CONDITIONS,SHEFFIELD TEACHING HOSPITALS NHS FOUNDATION TRUST,29549022,"169,000.00 "
Department of Health,NHS Sheffield CCG,31/10/2019,Hcare Srv Rec Fdtn Trust-Contract Baseline,ACUTE COMMISSIONING,SHEFFIELD TEACHING HOSPITALS NHS FOUNDATION TRUST,29549208,"3,898,717.00 "
Department of Health,NHS Sheffield CCG,31/10/2019,Hcare Srv Rec Fdtn Trust-Contract Baseline,ACUTE COMMISSIONING,SHEFFIELD TEACHING HOSPITALS NHS FOUNDATION TRUST,29549212,"1,367,221.00 "
Department of Health,NHS Sheffield CCG,31/10/2019,Hcare Srv Rec Fdtn Trust-Contract Baseline,ACUTE COMMISSIONING,SHEFFIELD TEACHING HOSPITALS NHS FOUNDATION TRUST,29549218,"192,715.00 "
Department of Health,NHS Sheffield CCG,31/10/2019,Hcare Srv Rec Fdtn Trust-Contract Baseline,ACUTE COMMISSIONING,SHEFFIELD TEACHING HOSPITALS NHS FOUNDATION TRUST,29549245,"30,408,062.00 "
Department of Health,NHS Sheffield CCG,31/10/2019,Hcare Srv Rec Fdtn Trust-Non Contract,ACUTE COMMISSIONING,SHEFFIELD TEACHING HOSPITALS NHS FOUNDATION TRUST,29610007,"25,572.46 "
Department of Health,NHS Sheffield CCG,31/10/2019,C&M-GMS Cost of Drugs -Prescribing,LOCAL ENHANCED SERVICES,SHIREGREEN MEDICAL CENTRE,29542158,947.39 
Department of Health,NHS Sheffield CCG,31/10/2019,C&M-GMS DES Minor Surgery,PRC DELEGATED CO-COMMISSIONING,SHIREGREEN MEDICAL CENTRE,29542158,80.00 
Department of Health,NHS Sheffield CCG,31/10/2019,C&M-GMS Global Sum,PRC DELEGATED CO-COMMISSIONING,SHIREGREEN MEDICAL CENTRE,29542158,"58,976.70 "
Department of Health,NHS Sheffield CCG,31/10/2019,C&M-GMS MPIG Correction Factor,PRC DELEGATED CO-COMMISSIONING,SHIREGREEN MEDICAL CENTRE,29542158,226.84 
Department of Health,NHS Sheffield CCG,31/10/2019,C&M-GMS PCN DES Participation,PRC DELEGATED CO-COMMISSIONING,SHIREGREEN MEDICAL CENTRE,29542158,"1,217.78 "
Department of Health,NHS Sheffield CCG,31/10/2019,C&M-GMS Prem Cost Rent,PRC DELEGATED CO-COMMISSIONING,SHIREGREEN MEDICAL CENTRE,29542158,"1,792.33 "
Department of Health,NHS Sheffield CCG,31/10/2019,C&M-GMS Prem Notional Rent,PRC DELEGATED CO-COMMISSIONING,SHIREGREEN MEDICAL CENTRE,29542158,"5,375.00 "
Department of Health,NHS Sheffield CCG,31/10/2019,C&M-GMS Prem Rates,PRC DELEGATED CO-COMMISSIONING,SHIREGREEN MEDICAL CENTRE,29542158,"1,922.00 "
Department of Health,NHS Sheffield CCG,31/10/2019,C&M-GMS Prof Fees Prescribing,PRC DELEGATED CO-COMMISSIONING,SHIREGREEN MEDICAL CENTRE,29542158,149.12 
Department of Health,NHS Sheffield CCG,31/10/2019,C&M-GMS QOF Aspiration,PRC DELEGATED CO-COMMISSIONING,SHIREGREEN MEDICAL CENTRE,29542158,"6,849.89 "
Department of Health,NHS Sheffield CCG,31/10/2019,NHS Recbles <1Yr- CHC Risk Pool Con,CHC ADULT FULLY FUNDED,SIMPSON MILLAR SOLICITORS,29451523,"26,738.59 "
Department of Health,NHS Sheffield CCG,31/10/2019,C&M-PMS GP Statutory Levy,PRC DELEGATED CO-COMMISSIONING,SLOAN MEDICAL CENTRE,29299283,(465.75)
Department of Health,NHS Sheffield CCG,31/10/2019,C&M-PMS Out of Hours Opt Outs,PRC DELEGATED CO-COMMISSIONING,SLOAN MEDICAL CENTRE,29299283,"(4,465.31)"
Department of Health,NHS Sheffield CCG,31/10/2019,C&M-PMS Contract Value,PRC DELEGATED CO-COMMISSIONING,SLOAN MEDICAL CENTRE,29299284,"95,329.16 "
Department of Health,NHS Sheffield CCG,31/10/2019,C&M-PMS PCN DES Participation,PRC DELEGATED CO-COMMISSIONING,SLOAN MEDICAL CENTRE,29299284,"1,809.97 "
Department of Health,NHS Sheffield CCG,31/10/2019,C&M-PMS PCO Other,PRC DELEGATED CO-COMMISSIONING,SLOAN MEDICAL CENTRE,29299284,802.90 
Department of Health,NHS Sheffield CCG,31/10/2019,C&M-PMS Prem Actual Rent,PRC DELEGATED CO-COMMISSIONING,SLOAN MEDICAL CENTRE,29299284,"15,535.83 "
Department of Health,NHS Sheffield CCG,31/10/2019,C&M-PMS Prem Notional Rent,PRC DELEGATED CO-COMMISSIONING,SLOAN MEDICAL CENTRE,29299284,608.33 
Department of Health,NHS Sheffield CCG,31/10/2019,C&M-PMS Prem Rates,PRC DELEGATED CO-COMMISSIONING,SLOAN MEDICAL CENTRE,29299284,"3,423.00 "
Department of Health,NHS Sheffield CCG,31/10/2019,C&M-PMS QOF Aspiration,PRC DELEGATED CO-COMMISSIONING,SLOAN MEDICAL CENTRE,29299284,"10,003.70 "
Department of Health,NHS Sheffield CCG,31/10/2019,C&M-PMS LES Presc Incentive Sch,LOCAL ENHANCED SERVICES,SLOAN MEDICAL CENTRE,29572476,"39,950.00 "
Department of Health,NHS Sheffield CCG,31/10/2019,C&M-PMS Contract Value,PRC DELEGATED CO-COMMISSIONING,SOTHALL MEDICAL CENTRE,29299286,"71,170.89 "
Department of Health,NHS Sheffield CCG,31/10/2019,C&M-PMS Out of Hours Opt Outs,PRC DELEGATED CO-COMMISSIONING,SOTHALL MEDICAL CENTRE,29299286,15.00 
Department of Health,NHS Sheffield CCG,31/10/2019,C&M-PMS PCN DES Participation,PRC DELEGATED CO-COMMISSIONING,SOTHALL MEDICAL CENTRE,29299286,"1,351.91 "
Department of Health,NHS Sheffield CCG,31/10/2019,C&M-PMS PCO Other,PRC DELEGATED CO-COMMISSIONING,SOTHALL MEDICAL CENTRE,29299286,627.60 
Department of Health,NHS Sheffield CCG,31/10/2019,C&M-PMS Prem Notional Rent,PRC DELEGATED CO-COMMISSIONING,SOTHALL MEDICAL CENTRE,29299286,"5,116.67 "
Department of Health,NHS Sheffield CCG,31/10/2019,C&M-PMS Prem Rates,PRC DELEGATED CO-COMMISSIONING,SOTHALL MEDICAL CENTRE,29299286,"1,412.00 "
Department of Health,NHS Sheffield CCG,31/10/2019,C&M-PMS Prem Water Rates,PRC DELEGATED CO-COMMISSIONING,SOTHALL MEDICAL CENTRE,29299286,128.17 
Department of Health,NHS Sheffield CCG,31/10/2019,C&M-PMS QOF Aspiration,PRC DELEGATED CO-COMMISSIONING,SOTHALL MEDICAL CENTRE,29299286,"8,630.52 "
Department of Health,NHS Sheffield CCG,31/10/2019,Clinical&Medical-Independent Sector,MENTAL HEALTH CONTRACTS,SOUTH YORKSHIRE HOUSING ASSOCIATION LTD,29286659,"34,435.00 "
Department of Health,NHS Sheffield CCG,31/10/2019,Cont Care- Adult 100% Fully Funded,CHC ADULT FULLY FUNDED,SOUTH YORKSHIRE HOUSING ASSOCIATION LTD,29286684,"46,763.59 "
Department of Health,NHS Sheffield CCG,31/10/2019,Cont Care- Adult 100% Fully Funded,CHC ADULT FULLY FUNDED,SOUTH YORKSHIRE HOUSING ASSOCIATION LTD,29310210,"25,500.00 "
Department of Health,NHS Sheffield CCG,31/10/2019,Cont Care-Physical Disab (<65),CHC ADULT FULLY FUNDED,SOUTH YORKSHIRE HOUSING ASSOCIATION LTD,29311113,"59,773.19 "
Department of Health,NHS Sheffield CCG,31/10/2019,Clinical&Medical-Voluntary Sector,COLLABORATIVE COMMISSIONING,SOUTH YORKSHIRE HOUSING ASSOCIATION LTD,29369569,"139,149.72 "
Department of Health,NHS Sheffield CCG,31/10/2019,Clinical&Medical-Voluntary Sector,COLLABORATIVE COMMISSIONING,SOUTH YORKSHIRE HOUSING ASSOCIATION LTD,29369571,"139,149.72 "
Department of Health,NHS Sheffield CCG,31/10/2019,Clinical&Medical-Voluntary Sector,COLLABORATIVE COMMISSIONING,SOUTH YORKSHIRE HOUSING ASSOCIATION LTD,29369572,"139,149.72 "
Department of Health,NHS Sheffield CCG,31/10/2019,C&M-PMS Contract Value,PRC DELEGATED CO-COMMISSIONING,SOUTHEY GREEN MEDICAL CENTRE,29299288,"25,168.62 "
Department of Health,NHS Sheffield CCG,31/10/2019,C&M-PMS Out of Hours Opt Outs,PRC DELEGATED CO-COMMISSIONING,SOUTHEY GREEN MEDICAL CENTRE,29299288,8.62 
Department of Health,NHS Sheffield CCG,31/10/2019,C&M-PMS PCN DES Participation,PRC DELEGATED CO-COMMISSIONING,SOUTHEY GREEN MEDICAL CENTRE,29299288,475.68 
Department of Health,NHS Sheffield CCG,31/10/2019,C&M-PMS Prem Notional Rent,PRC DELEGATED CO-COMMISSIONING,SOUTHEY GREEN MEDICAL CENTRE,29299288,"3,362.50 "
Department of Health,NHS Sheffield CCG,31/10/2019,C&M-PMS QOF Aspiration,PRC DELEGATED CO-COMMISSIONING,SOUTHEY GREEN MEDICAL CENTRE,29299288,"2,668.69 "
Department of Health,NHS Sheffield CCG,31/10/2019,Clinical&Medical-Independent Sector,NCAS/OATS,SPAMEDICA LTD,29528213,"111,052.36 "
Department of Health,NHS Sheffield CCG,31/10/2019,C&M-GMS DES Minor Surgery,PRC DELEGATED CO-COMMISSIONING,STANNINGTON MEDICAL CENTRE,29542162,160.00 
Department of Health,NHS Sheffield CCG,31/10/2019,C&M-GMS Global Sum,PRC DELEGATED CO-COMMISSIONING,STANNINGTON MEDICAL CENTRE,29542162,"26,202.20 "
Department of Health,NHS Sheffield CCG,31/10/2019,C&M-GMS PCO Other,PRC DELEGATED CO-COMMISSIONING,STANNINGTON MEDICAL CENTRE,29542162,237.70 
Department of Health,NHS Sheffield CCG,31/10/2019,C&M-GMS Prem Notional Rent,PRC DELEGATED CO-COMMISSIONING,STANNINGTON MEDICAL CENTRE,29542162,"2,575.00 "
Department of Health,NHS Sheffield CCG,31/10/2019,C&M-GMS Prem Rates,PRC DELEGATED CO-COMMISSIONING,STANNINGTON MEDICAL CENTRE,29542162,428.00 
Department of Health,NHS Sheffield CCG,31/10/2019,C&M-GMS QOF Aspiration,PRC DELEGATED CO-COMMISSIONING,STANNINGTON MEDICAL CENTRE,29542162,"2,881.70 "
Department of Health,NHS Sheffield CCG,31/10/2019,C&M-GMS Cost of Drugs -Prescribing,LOCAL ENHANCED SERVICES,STONECROFT MEDICAL CENTRE,29542160,514.52 
Department of Health,NHS Sheffield CCG,31/10/2019,C&M-GMS DES Learn Dsblty Hlth Chk,PRC DELEGATED CO-COMMISSIONING,STONECROFT MEDICAL CENTRE,29542160,280.00 
Department of Health,NHS Sheffield CCG,31/10/2019,C&M-GMS Global Sum,PRC DELEGATED CO-COMMISSIONING,STONECROFT MEDICAL CENTRE,29542160,"32,495.15 "
Department of Health,NHS Sheffield CCG,31/10/2019,C&M-GMS MPIG Correction Factor,PRC DELEGATED CO-COMMISSIONING,STONECROFT MEDICAL CENTRE,29542160,309.13 
Department of Health,NHS Sheffield CCG,31/10/2019,C&M-GMS PCN DES Participation,PRC DELEGATED CO-COMMISSIONING,STONECROFT MEDICAL CENTRE,29542160,657.55 
Department of Health,NHS Sheffield CCG,31/10/2019,C&M-GMS PCO Other,PRC DELEGATED CO-COMMISSIONING,STONECROFT MEDICAL CENTRE,29542160,284.70 
Department of Health,NHS Sheffield CCG,31/10/2019,C&M-GMS Prem Notional Rent,PRC DELEGATED CO-COMMISSIONING,STONECROFT MEDICAL CENTRE,29542160,"2,808.33 "
Department of Health,NHS Sheffield CCG,31/10/2019,C&M-GMS Prem Rates,PRC DELEGATED CO-COMMISSIONING,STONECROFT MEDICAL CENTRE,29542160,"1,215.00 "
Department of Health,NHS Sheffield CCG,31/10/2019,C&M-GMS Prof Fees Prescribing,PRC DELEGATED CO-COMMISSIONING,STONECROFT MEDICAL CENTRE,29542160,110.63 
Department of Health,NHS Sheffield CCG,31/10/2019,C&M-GMS QOF Aspiration,PRC DELEGATED CO-COMMISSIONING,STONECROFT MEDICAL CENTRE,29542160,"4,228.40 "
Department of Health,NHS Sheffield CCG,31/10/2019,Clinical&Medical-Independent Sector,MENTAL HEALTH CONTRACTS,SUSASH GB LTD T/A EAGLE HOUSE,29286663,"30,092.00 "
Department of Health,NHS Sheffield CCG,31/10/2019,C&M-GMS Cost of Drugs -Prescribing,LOCAL ENHANCED SERVICES,TOTLEY RISE MEDICAL CENTRE,29542164,552.85 
Department of Health,NHS Sheffield CCG,31/10/2019,C&M-GMS DES Minor Surgery,PRC DELEGATED CO-COMMISSIONING,TOTLEY RISE MEDICAL CENTRE,29542164,240.00 
Department of Health,NHS Sheffield CCG,31/10/2019,C&M-GMS Global Sum,PRC DELEGATED CO-COMMISSIONING,TOTLEY RISE MEDICAL CENTRE,29542164,"25,571.83 "
Department of Health,NHS Sheffield CCG,31/10/2019,C&M-GMS MPIG Correction Factor,PRC DELEGATED CO-COMMISSIONING,TOTLEY RISE MEDICAL CENTRE,29542164,51.57 
Department of Health,NHS Sheffield CCG,31/10/2019,C&M-GMS PCN DES Participation,PRC DELEGATED CO-COMMISSIONING,TOTLEY RISE MEDICAL CENTRE,29542164,504.35 
Department of Health,NHS Sheffield CCG,31/10/2019,C&M-GMS Prem Notional Rent,PRC DELEGATED CO-COMMISSIONING,TOTLEY RISE MEDICAL CENTRE,29542164,"1,604.17 "
Department of Health,NHS Sheffield CCG,31/10/2019,C&M-GMS Prem Rates,PRC DELEGATED CO-COMMISSIONING,TOTLEY RISE MEDICAL CENTRE,29542164,"1,565.06 "
Department of Health,NHS Sheffield CCG,31/10/2019,C&M-GMS Prof Fees Prescribing,PRC DELEGATED CO-COMMISSIONING,TOTLEY RISE MEDICAL CENTRE,29542164,96.21 
Department of Health,NHS Sheffield CCG,31/10/2019,C&M-GMS QOF Aspiration,PRC DELEGATED CO-COMMISSIONING,TOTLEY RISE MEDICAL CENTRE,29542164,"2,304.18 "
Department of Health,NHS Sheffield CCG,31/10/2019,C&M-GMS Cost of Drugs -Prescribing,LOCAL ENHANCED SERVICES,TRAMWAYS MEDICAL CENTRE,29542166,"1,679.29 "
Department of Health,NHS Sheffield CCG,31/10/2019,C&M-GMS DES Minor Surgery,PRC DELEGATED CO-COMMISSIONING,TRAMWAYS MEDICAL CENTRE,29542166,"7,945.00 "
Department of Health,NHS Sheffield CCG,31/10/2019,C&M-GMS Global Sum,PRC DELEGATED CO-COMMISSIONING,TRAMWAYS MEDICAL CENTRE,29542166,"61,606.41 "
Department of Health,NHS Sheffield CCG,31/10/2019,C&M-GMS PCN DES Participation,PRC DELEGATED CO-COMMISSIONING,TRAMWAYS MEDICAL CENTRE,29542166,"1,263.94 "
Department of Health,NHS Sheffield CCG,31/10/2019,C&M-GMS PCO Other,PRC DELEGATED CO-COMMISSIONING,TRAMWAYS MEDICAL CENTRE,29542166,534.60 
Department of Health,NHS Sheffield CCG,31/10/2019,C&M-GMS Prem Cost Rent,PRC DELEGATED CO-COMMISSIONING,TRAMWAYS MEDICAL CENTRE,29542166,"4,012.75 "
Department of Health,NHS Sheffield CCG,31/10/2019,C&M-GMS Prem Rates,PRC DELEGATED CO-COMMISSIONING,TRAMWAYS MEDICAL CENTRE,29542166,"1,098.00 "
Department of Health,NHS Sheffield CCG,31/10/2019,C&M-GMS Prof Fees Prescribing,PRC DELEGATED CO-COMMISSIONING,TRAMWAYS MEDICAL CENTRE,29542166,182.79 
Department of Health,NHS Sheffield CCG,31/10/2019,C&M-GMS QOF Aspiration,PRC DELEGATED CO-COMMISSIONING,TRAMWAYS MEDICAL CENTRE,29542166,"5,645.42 "
Department of Health,NHS Sheffield CCG,31/10/2019,Hcare Srv Rec NHS Trust-Contract Baseline,ACUTE COMMISSIONING,UNITED LINCOLNSHIRE HOSPITALS NHS TRUST,29407538,"26,180.60 "
Department of Health,NHS Sheffield CCG,31/10/2019,C&M-PMS Contract Value,PRC DELEGATED CO-COMMISSIONING,UNIVERSITY HEALTH SERVICE,29299291,"179,785.50 "
Department of Health,NHS Sheffield CCG,31/10/2019,C&M-PMS DES Extended Hours Access,PRC DELEGATED CO-COMMISSIONING,UNIVERSITY HEALTH SERVICE,29299291,"4,573.92 "
Department of Health,NHS Sheffield CCG,31/10/2019,C&M-PMS Out of Hours Opt Outs,PRC DELEGATED CO-COMMISSIONING,UNIVERSITY HEALTH SERVICE,29299291,572.06 
Department of Health,NHS Sheffield CCG,31/10/2019,C&M-PMS PCN DES Clinical Director,PRC DELEGATED CO-COMMISSIONING,UNIVERSITY HEALTH SERVICE,29299291,"2,139.21 "
Department of Health,NHS Sheffield CCG,31/10/2019,C&M-PMS PCN DES PCN support,LOCAL ENHANCED SERVICES,UNIVERSITY HEALTH SERVICE,29299291,"4,682.13 "
Department of Health,NHS Sheffield CCG,31/10/2019,C&M-PMS PCN DES Participation,PRC DELEGATED CO-COMMISSIONING,UNIVERSITY HEALTH SERVICE,29299291,"3,535.52 "
Department of Health,NHS Sheffield CCG,31/10/2019,C&M-PMS Prem Notional Rent,PRC DELEGATED CO-COMMISSIONING,UNIVERSITY HEALTH SERVICE,29299291,"15,833.33 "
Department of Health,NHS Sheffield CCG,31/10/2019,C&M-PMS QOF Aspiration,PRC DELEGATED CO-COMMISSIONING,UNIVERSITY HEALTH SERVICE,29299291,"4,031.41 "
Department of Health,NHS Sheffield CCG,31/10/2019,C&M-PMS Contract Value,PRC DELEGATED CO-COMMISSIONING,UNIVERSITY HEALTH SERVICE,29321050,"(11,798.15)"
Department of Health,NHS Sheffield CCG,31/10/2019,C&M-PMS DES Extended Hours Access,PRC DELEGATED CO-COMMISSIONING,UNIVERSITY HEALTH SERVICE,29321050,"(4,573.92)"
Department of Health,NHS Sheffield CCG,31/10/2019,C&M-PMS GP Statutory Levy,PRC DELEGATED CO-COMMISSIONING,UNIVERSITY HEALTH SERVICE,29321050,"(1,459.68)"
Department of Health,NHS Sheffield CCG,31/10/2019,C&M-PMS Out of Hours Opt Outs,PRC DELEGATED CO-COMMISSIONING,UNIVERSITY HEALTH SERVICE,29321050,"(8,693.25)"
Department of Health,NHS Sheffield CCG,31/10/2019,C&M-PMS PCN DES Clinical Director,PRC DELEGATED CO-COMMISSIONING,UNIVERSITY HEALTH SERVICE,29321050,"(2,139.21)"
Department of Health,NHS Sheffield CCG,31/10/2019,C&M-PMS PCN DES PCN support,LOCAL ENHANCED SERVICES,UNIVERSITY HEALTH SERVICE,29321050,"(4,682.13)"
Department of Health,NHS Sheffield CCG,31/10/2019,C&M-GMS LES Equitable Funding,LOCAL ENHANCED SERVICES,UNIVERSITY HEALTH SERVICE,29445952,"29,132.00 "
Department of Health,NHS Sheffield CCG,31/10/2019,Other Research Exp,Nursing and Quality Programme,UNIVERSITY OF SHEFFIELD,29451531,"65,625.31 "
Department of Health,NHS Sheffield CCG,31/10/2019,C&M-GMS Cost of Drugs -Prescribing,LOCAL ENHANCED SERVICES,UPPERTHORPE MEDICAL CENTRE,29542169,"2,433.83 "
Department of Health,NHS Sheffield CCG,31/10/2019,C&M-GMS DES Minor Surgery,PRC DELEGATED CO-COMMISSIONING,UPPERTHORPE MEDICAL CENTRE,29542169,785.00 
Department of Health,NHS Sheffield CCG,31/10/2019,C&M-GMS Global Sum,PRC DELEGATED CO-COMMISSIONING,UPPERTHORPE MEDICAL CENTRE,29542169,"84,509.61 "
Department of Health,NHS Sheffield CCG,31/10/2019,C&M-GMS MPIG Correction Factor,PRC DELEGATED CO-COMMISSIONING,UPPERTHORPE MEDICAL CENTRE,29542169,662.87 
Department of Health,NHS Sheffield CCG,31/10/2019,C&M-GMS PCN DES Participation,PRC DELEGATED CO-COMMISSIONING,UPPERTHORPE MEDICAL CENTRE,29542169,"1,681.95 "
Department of Health,NHS Sheffield CCG,31/10/2019,C&M-GMS Prem Notional Rent,PRC DELEGATED CO-COMMISSIONING,UPPERTHORPE MEDICAL CENTRE,29542169,"3,297.83 "
Department of Health,NHS Sheffield CCG,31/10/2019,C&M-GMS Prem Rates,PRC DELEGATED CO-COMMISSIONING,UPPERTHORPE MEDICAL CENTRE,29542169,"2,318.00 "
Department of Health,NHS Sheffield CCG,31/10/2019,C&M-GMS Prem Water Rates,PRC DELEGATED CO-COMMISSIONING,UPPERTHORPE MEDICAL CENTRE,29542169,362.56 
Department of Health,NHS Sheffield CCG,31/10/2019,C&M-GMS Prof Fees Prescribing,PRC DELEGATED CO-COMMISSIONING,UPPERTHORPE MEDICAL CENTRE,29542169,218.88 
Department of Health,NHS Sheffield CCG,31/10/2019,C&M-GMS QOF Aspiration,PRC DELEGATED CO-COMMISSIONING,UPPERTHORPE MEDICAL CENTRE,29542169,"9,072.83 "
Department of Health,NHS Sheffield CCG,31/10/2019,C&M-PMS Contract Value,PRC DELEGATED CO-COMMISSIONING,UPWELL STREET SURGERY,29299293,"37,734.18 "
Department of Health,NHS Sheffield CCG,31/10/2019,C&M-PMS Out of Hours Opt Outs,PRC DELEGATED CO-COMMISSIONING,UPWELL STREET SURGERY,29299293,14.04 
Department of Health,NHS Sheffield CCG,31/10/2019,C&M-PMS PCN DES Participation,PRC DELEGATED CO-COMMISSIONING,UPWELL STREET SURGERY,29299293,713.41 
Department of Health,NHS Sheffield CCG,31/10/2019,C&M-PMS PCO Other,PRC DELEGATED CO-COMMISSIONING,UPWELL STREET SURGERY,29299293,324.80 
Department of Health,NHS Sheffield CCG,31/10/2019,C&M-PMS Prem Notional Rent,PRC DELEGATED CO-COMMISSIONING,UPWELL STREET SURGERY,29299293,"8,137.50 "
Department of Health,NHS Sheffield CCG,31/10/2019,C&M-PMS Prem Rates,PRC DELEGATED CO-COMMISSIONING,UPWELL STREET SURGERY,29299293,"1,340.00 "
Department of Health,NHS Sheffield CCG,31/10/2019,C&M-PMS QOF Aspiration,PRC DELEGATED CO-COMMISSIONING,UPWELL STREET SURGERY,29299293,"4,056.38 "
Department of Health,NHS Sheffield CCG,31/10/2019,C&M-PMS Contract Value,PRC DELEGATED CO-COMMISSIONING,VALLEY MEDICAL CENTRE,29299295,"78,804.25 "
Department of Health,NHS Sheffield CCG,31/10/2019,C&M-PMS DES Extended Hours Access,PRC DELEGATED CO-COMMISSIONING,VALLEY MEDICAL CENTRE,29299295,"2,533.07 "
Department of Health,NHS Sheffield CCG,31/10/2019,C&M-PMS PCN DES Clinical Director,PRC DELEGATED CO-COMMISSIONING,VALLEY MEDICAL CENTRE,29299295,"1,184.71 "
Department of Health,NHS Sheffield CCG,31/10/2019,C&M-PMS PCN DES PCN support,LOCAL ENHANCED SERVICES,VALLEY MEDICAL CENTRE,29299295,"2,593.00 "
Department of Health,NHS Sheffield CCG,31/10/2019,C&M-PMS PCN DES Participation,PRC DELEGATED CO-COMMISSIONING,VALLEY MEDICAL CENTRE,29299295,"1,492.89 "
Department of Health,NHS Sheffield CCG,31/10/2019,C&M-PMS Prem Rates,PRC DELEGATED CO-COMMISSIONING,VALLEY MEDICAL CENTRE,29299295,"1,664.00 "
Department of Health,NHS Sheffield CCG,31/10/2019,C&M-PMS QOF Aspiration,PRC DELEGATED CO-COMMISSIONING,VALLEY MEDICAL CENTRE,29299295,"8,453.91 "
Department of Health,NHS Sheffield CCG,31/10/2019,Cont Care-Physical Disab (<65),CHC ADULT FULLY FUNDED,VALORUM CARE LTD,29286697,"58,369.49 "
Department of Health,NHS Sheffield CCG,31/10/2019,C&M-GMS Cost of Drugs -Prescribing,LOCAL ENHANCED SERVICES,WALKLEY HOUSE MEDICAL CENTRE,29542175,"1,662.66 "
Department of Health,NHS Sheffield CCG,31/10/2019,C&M-GMS DES Minor Surgery,PRC DELEGATED CO-COMMISSIONING,WALKLEY HOUSE MEDICAL CENTRE,29542175,"1,140.00 "
Department of Health,NHS Sheffield CCG,31/10/2019,C&M-GMS Global Sum,PRC DELEGATED CO-COMMISSIONING,WALKLEY HOUSE MEDICAL CENTRE,29542175,"85,699.63 "
Department of Health,NHS Sheffield CCG,31/10/2019,C&M-GMS PCN DES Participation,PRC DELEGATED CO-COMMISSIONING,WALKLEY HOUSE MEDICAL CENTRE,29542175,"1,749.49 "
Department of Health,NHS Sheffield CCG,31/10/2019,C&M-GMS Prem Notional Rent,PRC DELEGATED CO-COMMISSIONING,WALKLEY HOUSE MEDICAL CENTRE,29542175,"5,635.50 "
Department of Health,NHS Sheffield CCG,31/10/2019,C&M-GMS Prem Rates,PRC DELEGATED CO-COMMISSIONING,WALKLEY HOUSE MEDICAL CENTRE,29542175,"1,845.00 "
Department of Health,NHS Sheffield CCG,31/10/2019,C&M-GMS Prem Water Rates,PRC DELEGATED CO-COMMISSIONING,WALKLEY HOUSE MEDICAL CENTRE,29542175,122.11 
Department of Health,NHS Sheffield CCG,31/10/2019,C&M-GMS Prof Fees Prescribing,PRC DELEGATED CO-COMMISSIONING,WALKLEY HOUSE MEDICAL CENTRE,29542175,206.84 
Department of Health,NHS Sheffield CCG,31/10/2019,C&M-GMS QOF Aspiration,PRC DELEGATED CO-COMMISSIONING,WALKLEY HOUSE MEDICAL CENTRE,29542175,"8,602.90 "
Department of Health,NHS Sheffield CCG,31/10/2019,C&M-GMS GP Statutory Levy,PRC DELEGATED CO-COMMISSIONING,WHITE HOUSE SURGERY SHEFFIELD,29542172,(231.81)
Department of Health,NHS Sheffield CCG,31/10/2019,C&M-GMS Cost of Drugs -Prescribing,LOCAL ENHANCED SERVICES,WHITE HOUSE SURGERY SHEFFIELD,29542173,"1,084.43 "
Department of Health,NHS Sheffield CCG,31/10/2019,C&M-GMS DES Minor Surgery,PRC DELEGATED CO-COMMISSIONING,WHITE HOUSE SURGERY SHEFFIELD,29542173,205.00 
Department of Health,NHS Sheffield CCG,31/10/2019,C&M-GMS Global Sum,PRC DELEGATED CO-COMMISSIONING,WHITE HOUSE SURGERY SHEFFIELD,29542173,"52,092.41 "
Department of Health,NHS Sheffield CCG,31/10/2019,C&M-GMS MPIG Correction Factor,PRC DELEGATED CO-COMMISSIONING,WHITE HOUSE SURGERY SHEFFIELD,29542173,695.65 
Department of Health,NHS Sheffield CCG,31/10/2019,C&M-GMS PCN DES Participation,PRC DELEGATED CO-COMMISSIONING,WHITE HOUSE SURGERY SHEFFIELD,29542173,"1,038.45 "
Department of Health,NHS Sheffield CCG,31/10/2019,C&M-GMS Prem Notional Rent,PRC DELEGATED CO-COMMISSIONING,WHITE HOUSE SURGERY SHEFFIELD,29542173,"9,412.50 "
Department of Health,NHS Sheffield CCG,31/10/2019,C&M-GMS Prem Rates,PRC DELEGATED CO-COMMISSIONING,WHITE HOUSE SURGERY SHEFFIELD,29542173,"2,443.00 "
Department of Health,NHS Sheffield CCG,31/10/2019,C&M-GMS Prof Fees Prescribing,PRC DELEGATED CO-COMMISSIONING,WHITE HOUSE SURGERY SHEFFIELD,29542173,218.87 
Department of Health,NHS Sheffield CCG,31/10/2019,C&M-GMS QOF Aspiration,PRC DELEGATED CO-COMMISSIONING,WHITE HOUSE SURGERY SHEFFIELD,29542173,"6,233.52 "
Department of Health,NHS Sheffield CCG,31/10/2019,Cont Care-Physical Disab (<65),CHC ADULT FULLY FUNDED,WILLOWBECK HEALTH CARE LTD,29310749,"100,365.69 "
Department of Health,NHS Sheffield CCG,31/10/2019,C&M-PMS Contract Value,PRC DELEGATED CO-COMMISSIONING,WINCOBANK MEDICAL CENTRE,29299298,"62,282.64 "
Department of Health,NHS Sheffield CCG,31/10/2019,C&M-PMS Out of Hours Opt Outs,PRC DELEGATED CO-COMMISSIONING,WINCOBANK MEDICAL CENTRE,29299298,14.95 
Department of Health,NHS Sheffield CCG,31/10/2019,C&M-PMS PCN DES Participation,PRC DELEGATED CO-COMMISSIONING,WINCOBANK MEDICAL CENTRE,29299298,"1,179.69 "
Department of Health,NHS Sheffield CCG,31/10/2019,C&M-PMS Prem Healthcentre Rent,PRC DELEGATED CO-COMMISSIONING,WINCOBANK MEDICAL CENTRE,29299298,"45,121.79 "
Department of Health,NHS Sheffield CCG,31/10/2019,C&M-PMS QOF Aspiration,PRC DELEGATED CO-COMMISSIONING,WINCOBANK MEDICAL CENTRE,29299298,"6,283.36 "
Department of Health,NHS Sheffield CCG,31/10/2019,C&M-PMS Contract Value,PRC DELEGATED CO-COMMISSIONING,WOODHOUSE HEALTH CENTRE,29321049,"100,768.86 "
Department of Health,NHS Sheffield CCG,31/10/2019,C&M-PMS Out of Hours Opt Outs,PRC DELEGATED CO-COMMISSIONING,WOODHOUSE HEALTH CENTRE,29321049,8.54 
Department of Health,NHS Sheffield CCG,31/10/2019,C&M-PMS PCN DES Participation,PRC DELEGATED CO-COMMISSIONING,WOODHOUSE HEALTH CENTRE,29321049,"1,906.58 "
Department of Health,NHS Sheffield CCG,31/10/2019,C&M-PMS PCO Locum Adop/Pat/Mat,PRC DELEGATED CO-COMMISSIONING,WOODHOUSE HEALTH CENTRE,29321049,"8,731.26 "
Department of Health,NHS Sheffield CCG,31/10/2019,C&M-PMS PCO Other,PRC DELEGATED CO-COMMISSIONING,WOODHOUSE HEALTH CENTRE,29321049,746.40 
Department of Health,NHS Sheffield CCG,31/10/2019,C&M-PMS Prem Notional Rent,PRC DELEGATED CO-COMMISSIONING,WOODHOUSE HEALTH CENTRE,29321049,"6,338.58 "
Department of Health,NHS Sheffield CCG,31/10/2019,C&M-PMS Prem Rates,PRC DELEGATED CO-COMMISSIONING,WOODHOUSE HEALTH CENTRE,29321049,"1,757.00 "
Department of Health,NHS Sheffield CCG,31/10/2019,C&M-PMS QOF Aspiration,PRC DELEGATED CO-COMMISSIONING,WOODHOUSE HEALTH CENTRE,29321049,"13,912.30 "
Department of Health,NHS Sheffield CCG,31/10/2019,C&M-PMS Contract Value,PRC DELEGATED CO-COMMISSIONING,WOODSEATS MEDICAL CENTRE,29298699,"77,276.71 "
Department of Health,NHS Sheffield CCG,31/10/2019,C&M-PMS PCN DES Participation,PRC DELEGATED CO-COMMISSIONING,WOODSEATS MEDICAL CENTRE,29298699,"1,439.13 "
Department of Health,NHS Sheffield CCG,31/10/2019,C&M-PMS PCO Other,PRC DELEGATED CO-COMMISSIONING,WOODSEATS MEDICAL CENTRE,29298699,622.70 
Department of Health,NHS Sheffield CCG,31/10/2019,C&M-PMS Prem Notional Rent,PRC DELEGATED CO-COMMISSIONING,WOODSEATS MEDICAL CENTRE,29298699,"11,666.67 "
Department of Health,NHS Sheffield CCG,31/10/2019,C&M-PMS Prem Rates,PRC DELEGATED CO-COMMISSIONING,WOODSEATS MEDICAL CENTRE,29298699,"3,100.00 "
Department of Health,NHS Sheffield CCG,31/10/2019,C&M-PMS QOF Aspiration,PRC DELEGATED CO-COMMISSIONING,WOODSEATS MEDICAL CENTRE,29298699,"8,242.64 "
Department of Health,NHS Sheffield CCG,31/10/2019,C&M-PMS LES Presc Incentive Sch,LOCAL ENHANCED SERVICES,WOODSEATS MEDICAL CENTRE,29572477,"30,550.00 "
Department of Health,NHS Sheffield CCG,31/10/2019,Hcare Srv Rec NHS Trust-Contract Baseline,AMBULANCE SERVICES,YORKSHIRE AMBULANCE SERVICE NHS TRUST,29239064,"1,674,240.00 "
Department of Health,NHS Sheffield CCG,31/10/2019,Hcare Srv Rec NHS Trust-Contract Baseline,AMBULANCE SERVICES,YORKSHIRE AMBULANCE SERVICE NHS TRUST,29239065,"127,348.75 "
Department of Health,NHS Sheffield CCG,31/10/2019,Hcare Srv Rec NHS Trust-Contract Baseline,NHS 111,YORKSHIRE AMBULANCE SERVICE NHS TRUST,29239066,"133,605.27 "
Department of Health,NHS Sheffield CCG,31/10/2019,Hcare Srv Rec NHS Trust-Contract Baseline,PATIENT TRANSPORT,YORKSHIRE AMBULANCE SERVICE NHS TRUST,29239067,"267,243.94 "
,,,,,,,"63,014,259.02 "
